{"text_format":"1","workbook":"xlsx","n_sheets":11,"sheets":["Solicitud Información General","Detalle Bienes de Aseo y Caf","Detalle Especificaciones","Observaciones Proveedores ","ConsolidadoServicios","solCotizacionCSV_es","Listas","ClasifiPersonal","TablaDinamica","temp","Precios"],"not_rendered":{"charts":0,"images":2,"macros":1,"external_links":0,"defined_names":34,"comments":1,"pivot_tables":0},"unopened":[],"bounds":{"document_bytes":16777216,"sheet_cells":100000,"rows_first":2000,"rows_last":500,"rows_between":2000,"halvings":0,"cell_chars":16384,"cell_head_chars":4096},"cells_cut":0,"cells_raw":0,"read":"whole","date_system":"1900"}

{"sheet":"Solicitud Información General","index":0,"n_rows":56,"n_cols":10,"rows_kept":56,"cut":false,"hidden":false,"merged":[[25,9,26,9],[15,0,15,1],[18,0,18,1],[20,0,20,1],[20,5,20,7],[18,5,18,7],[15,9,16,9],[20,9,21,9],[15,5,15,7],[17,5,17,7],[17,0,17,1],[23,5,23,7],[16,0,16,7],[21,0,21,7],[23,0,23,1],[22,0,22,1],[22,5,22,7],[49,0,49,1],[40,5,40,7],[36,3,36,7],[38,0,38,7],[40,0,40,2],[45,0,45,1],[45,3,45,5],[36,0,36,2],[46,0,46,1],[26,0,26,7],[25,5,25,7],[25,0,25,1],[31,0,31,7],[29,4,29,7],[27,0,27,1],[27,5,27,7],[28,0,28,1],[28,5,28,7],[34,0,34,1],[32,6,32,7],[29,0,29,1],[0,0,3,6],[8,0,8,1],[8,2,8,3],[4,0,4,7],[6,0,6,1],[6,2,6,7],[7,0,7,1],[7,2,7,5],[10,0,10,1],[10,3,10,4],[11,0,11,1],[11,3,11,4],[13,0,13,7],[31,9,32,9],[55,0,56,7],[43,0,43,7],[58,0,63,7],[48,3,48,7],[50,0,50,1],[48,0,48,1],[33,0,33,1],[32,0,32,1],[33,4,33,5],[33,6,33,7],[32,4,32,5],[34,4,34,5],[35,4,35,7],[52,0,52,1],[34,6,34,7]]}
["Solicitud de Información"]
[]
[]
[]
["1. Información básica de la Entidad Compradora"]
[]
["Nombre de la Entidad Compradora"]
["Dirección",null,null,null,null,null,"Teléfono"]
["Departamento",null,null,null,"Municipio",null,"Región"]
[]
["Vigencia del contrato en meses",null,null,"Fecha estimada de inicio: dd/mm/aaaa"]
["¿Requiere el servicio para otras sedes? ",null,null,"N° de sedes"]
[]
["2. Personal ",null,null,null,null,null,null,null,null,"Detalle \nSolicitud Entidad"]
[]
["Perfil del operario que requiere la sede",null,"Total requerido ","Días de trabajo","Horario","Observaciones",null,null,null,"Sede 1"]
["Tiempo completo"]
[null,null,{"$f":"SUM(J18:J18)","v":0}]
["1. Si requiere agregue o elimine filas de Personal TC",null,null,null,null,null,null,null,null,{"$f":"SUM(J18:J18)","v":0}]
[null,null,{"$f":"SUM(C18:C19)","v":0}]
["Perfil del operario que requiere la sede",null,"Total requerido ","Días de trabajo","Horario","Observaciones",null,null,null,{"$f":"J16","v":"Sede 1"}]
["Medio Tiempo"]
[null,null,{"$f":"SUM(J23:J23)","v":0}]
["1. Si requiere agregue o elimine filas de Personal MT",null,null,null,null,null,null,null,null,{"$f":"SUM(J23:J23)","v":0}]
[null,null,{"$f":"SUM(C23:C24)","v":0}]
["Perfil del operario que requiere la sede",null,"Total requerido ","Días de trabajo","Horario","Observaciones",null,null,null,{"$f":"J21","v":"Sede 1"}]
["Personal por Turnos"]
[null,null,{"$f":"SUM(J28:J28)","v":0}]
["1. Si requiere agregue o elimine filas de Personal Turno",null,{"$f":"SUM(C28:C28)","v":0},null,null,null,null,null,null,{"$f":"SUM(J28:J28)","v":0}]
["Total N° de operarios requeridos: ",null,{"$f":"C20+C25+C29","v":0}]
[]
["Disminución del personal",null,null,null,null,null,null,null,null,{"$f":"J26","v":"Sede 1"}]
["perfil de operario",null,"Total requerido ","cantidad","fecha inicial",null,"fecha final"]
[null,null,{"$f":"SUM(J34:J34)","v":0}]
["1. Si requiere agregue o elimine filas de Disminución Personal",null,null,null,null,null,null,null,null,{"$f":"SUM(J34:J34)","v":0}]
[]
["Observaciones sobre la dotación del personal "]
[]
["3. Bienes de Aseo y Cafetería "]
[]
["¿Requiere Bienes de Aseo y Cafetería?",null,null,"No",null,{"$f":"IF(D41=\"Sí\",HYPERLINK(\"#'Detalle Bienes de Aseo y Caf'!F10\",\"Seleccionar Bienes de Aseo y Cafetería\"),\"Sin Bienes\")","v":"Sin Bienes"}]
[]
[]
["4. Servicios Especiales",null,null,null,null,null,null,null,null,"Detalle \nSolicitud Entidad"]
[]
["1. Fumigación",null,{"$f":"IF($C47<100,\"No\",\"Sí\")","v":"No"},"N° de fumigaciones requeridas durante la Orden de Compra",null,null,null,null,null,{"$f":"J16","v":"Sede 1"}]
["Total en m2 ",null,{"$f":"SUM(J47)","v":0}]
[]
["2. Jardinería",null,{"$f":"IF($C50<100,\"No\",\"Sí\")","v":"No"},null,null,null,null,null,null,{"$f":"J46","v":"Sede 1"}]
["Área total de la zona verde a mantener en m2: ",null,{"$f":"SUM(J50)","v":0}]
[]
[]
["3. Trabajo en alturas nivel avanzado"]
[]
[]
["6. Observaciones generales"]

{"sheet":"Detalle Bienes de Aseo y Caf","index":1,"n_rows":383,"n_cols":9,"rows_kept":383,"cut":false,"hidden":false,"merged":[[382,0,382,5],[248,0,248,4],[380,0,380,5],[1,0,1,6],[2,0,2,4],[3,0,3,4]]}
[]
["Formato de Solicitud de Información"]
[]
["3. Bienes de Aseo y Cafetería"]
[]
[]
[]
[]
[]
[]
["A. Insumos",null,null,null,null,null,null,null,"Detalle Sede"]
[]
["No.","Bien","Especificación ","Presentación ","Cantidad Mensual","Precio unitario","Total",null,"Sede 1"]
[1,"Jabón para loza 1","- Con agente(s) tensoactivo(s) principal(es) con efecto limpiador y desengrasante en una concentración mínima del 8%.\n- Disponible en mínimo (2) dos fragancias\n - El  envase del producto deberá estar correctamente etiquetado bajo los parámetros establecidos en el sistema globalmente armonizado, indicando: nombre comercial del producto, pictogramas de los compuestos peligrosos e instrucciones de uso","Líquido, en recipiente plástico con capacidad mínima de 3.785 cc",{"$f":"SUM(I14:I14)","v":0},null,{"$f":"E14*F14","v":0}]
[2,"Jabón para loza 2","- Con agente(s) C35tensoactivo(s) principal(es) con efecto limpiador y desengrasante en una concentración mínima del 8%.\n- Disponible en mínimo (2) dos fragancias\n -  El  envase del producto deberá estar correctamente etiquetado bajo los parámetros establecidos en el sistema globalmente armonizado, indicando: nombre comercial del producto, pictogramas de los compuestos peligrosos e instrucciones de uso","Líquido, en recipiente plástico de mínimo 500 cc",{"$f":"SUM(I15:I15)","v":0},null,{"$f":"E15*F15","v":0}]
[3,"Jabón para loza 3"," - Con agente(s) tensoactivo(s) principal(es) con efecto limpiador y desengrasante en una concentración mínima del 15%.\n - Disponible en mínimo (2) dos fragancias\n -  El  envase del producto deberá estar correctamente etiquetado, indicando: nombre comercial del producto, pictogramas de los compuestos peligrosos si aplica e instrucciones de uso.","Crema, en recipiente plástico de mínimo 900 gr",{"$f":"SUM(I16:I16)","v":0},null,{"$f":"E16*F16","v":0}]
[4,"Jabón en barra","-Composición de ácidos grasos de mínimo 50%.","Barra, unidad con peso mínimo de 250 gr en\nenvoltura individual",{"$f":"SUM(I17:I17)","v":0},null,0]
[5,"Jabón abrasivo","-Con agente(s) tensoactivo(s) pincipal(es) con efecto limpiador, pulidor y desengrasante\n- Con agente activo mínimo del 5%","En polvo, en tarro de mínimo 500 gr",{"$f":"SUM(I18:I18)","v":0},null,0]
[6,"Jabón de tocador"," - Elaborado con grasas vegetales\n - Con agente humectante\n - pH modificar entre PH 5,5 a 7\n - Disponible en mínimo (2) dos fragancias\n -  Debe estar  correctamente etiquetados bajo los parámetros indicando: nombre comercial del producto, pictogramas de los compuestos peligrosos e instrucciones de uso","Barra, unidad con peso mínimo de 125 gr en envoltura individual",{"$f":"SUM(I19:I19)","v":0},null,0]
[7,"Jabón de dispensador para manos 1","- Con agente limpiador en una concentración mínima del 6%\n- Con agente humectante en una concentración mínima del 3%\n- pH entre 5,5 a 7\n- Disponible en mínimo (2) dos fragancias","Líquido, en recipiente plástico con dispensador y capacidad mínima de 500 ml.",{"$f":"SUM(I20:I20)","v":0},null,0]
[8,"Jabón de dispensador para manos 2","- Con agente limpiador en una concentración mínima del 6%\n- Con agente humectante en una concentración mínima del 3%\n- pH entre 5,5 a 7\n- Disponible en mínimo (2) dos fragancias","Líquido, en recipiente plástico con capacidad mínima de 3.785 cc",{"$f":"SUM(I21:I21)","v":0},null,0]
[9,"Jabón de dispensador para manos 3","- Con agente limpiador en una concentración mínima del 6%.\n- Con agente antibacterial en una concentración mínima del 0,2%\n- Con agente humectante en una concentración mínima del 3%\n- pH entre 5,5 a 7\n- Disponible en mínimo (2) dos fragancias","Líquido, en recipiente plástico con capacidad mínima de 3.785 cc",{"$f":"SUM(I22:I22)","v":0},null,0]
[10,"Gel antibacterial para manos","- Con agente antibacterial en una concentración mínima del 0,2%\n- Con agente humectante\n- pH entre 5, 5 a 7\n- Con fragancia","Gel, en recipiente plástico con capacidad mínima de 3.785 cc",{"$f":"SUM(I23:I23)","v":0},null,0]
[11,"Limpiador multiusos 1","- Con agente(s) tensoactivo(s) principal(es) con efecto limpiador en una concentración mínima del 8%\n- Disponible en mínimo (2) dos fragancias\n - El envase debe estar  correctamente etiquetados bajo los parámetros establecidos en el sistema globalmente armonizado indicando: nombre comercial del producto, pictogramas de los compuestos peligrosos e instrucciones de uso","Líquido, en recipiente plástico con capacidad mínima de 3.785 cc ",{"$f":"SUM(I24:I24)","v":0},null,0]
[12,"Limpiador multiusos 2","- Con agente(s) tensoactivo(s) principal(es) con efecto limpiador y desengrasante en una concentración mínima del 8%\n- Disponible en mínimo (2) dos fragancias\n - El envase debe estar  correctamente etiquetados bajo los parámetros establecidos en el sistema globalmente armonizado indicando: nombre comercial del producto, pictogramas de los compuestos peligrosos e instrucciones de uso","Líquido, en recipiente plástico con capacidad mínima de 500 cc, con\natomizador de pistola.",{"$f":"SUM(I25:I25)","v":0},null,0]
[13,"Limpiador multiusos 3","- Con agente(s) tensoactivo(s) principal(es) con efecto limpiador y desengrasante en una concentración mínima del 8%\n- Disponible en mínimo (2) dos fragancias\n - El envase debe estar  correctamente etiquetados bajo los parámetros establecidos en el sistema globalmente armonizado indicando: nombre comercial del producto, pictogramas de los compuestos peligrosos e instrucciones de uso","Líquido, en recipiente plástico de repuesto  con capacidad mínima de 500 cc",{"$f":"SUM(I26:I26)","v":0},null,0]
[14,"Líquido desengrasante"," - Con agente(s) tensoactivo(s) principal(es) con efecto limpiador y desengrasante en una concentración mínima del 10%\n - El envase debe estar  correctamente etiquetados bajo los parámetros establecidos en el sistema globalmente armonizado indicando: nombre comercial del producto, pictogramas de los compuestos peligrosos e instrucciones de uso\n","Líquido, en recipiente plástico con capacidad mínima de 3.785 cc",{"$f":"SUM(I27:I27)","v":0},null,0]
[15,"Detergente multiusos en polvo"," - Con agente tensoactivo de mínimo 60% de biodegradabilidad\n  -Con efecto limpiador de mínimo 9%.\n -  El  envase del producto deberá estar correctamente etiquetado bajo los parámetros: nombre comercial del producto, pictogramas de los compuestos peligrosos e instrucciones de uso\n","Polvo, en bolsa plástica o recipiente plástico\ncon un peso de 1.000 gr",{"$f":"SUM(I28:I28)","v":0},null,0]
[16,"Desinfectante para uso general 1","- Con agente(s) tensoactivo(s) con efecto antibacterial en una concentración mínima del 0,2%\n- Con agente(s) tensoactivo(s) con efecto limpiador y desengrasante en una concentración mínima del 1,5%\n - El envase debe estar  correctamente etiquetados bajo los parámetros establecidos en el sistema globalmente armonizado indicando: nombre comercial del producto, pictogramas de los compuestos peligrosos e instrucciones de uso","Líquido, en recipiente plástico con capacidad mínima de 3.785 cc",{"$f":"SUM(I29:I29)","v":0},null,0]
[17,"Desinfectante para uso general 2","- Con agente(s) tensoactivo(s) con efecto antibacterial en una concentración mínima del 0,2%\n- Con agente(s) tensoactivo(s) con efecto limpiador y desengrasante en una concentración mínima del 1,5%\n - El envase debe estar  correctamente etiquetados bajo los parámetros establecidos en el sistema globalmente armonizado indicando: nombre comercial del producto, pictogramas de los compuestos peligrosos e instrucciones de uso","Líquido, en recipiente plástico con capacidad mínima de 500 cc, con atomizador de pistola.",{"$f":"SUM(I30:I30)","v":0},null,0]
[18,"Desinfectante para uso general 3","- Con agente(s) tensoactivo(s) con efecto antibacterial en una concentración mínima del 0,2%\n- Con agente(s) tensoactivo(s) con efecto limpiador y desengrasante en una concentración mínima del 1,5%\n - El envase debe estar  correctamente etiquetados bajo los parámetros establecidos en el sistema globalmente armonizado indicando: nombre comercial del producto, pictogramas de los compuestos peligrosos e instrucciones de uso","Líquido, en recipiente plástico con capacidad mínima de 500 cc",{"$f":"SUM(I31:I31)","v":0},null,0]
[19,"Desinfectante de alto nivel de desinfección para uso\nhospitalario"," - Con agentes bactericidas, fungicidas, tubercolicidas, esporicidas y virucidas.\n - Sin fragacia\n - El envase debe estar  correctamente etiquetados bajo los parámetros establecidos en el sistema globalmente armonizado indicando: nombre comercial del producto, pictogramas de los compuestos peligrosos e instrucciones de uso","Líquido, en recipiente plástico con capacidad\nmínima de 3.785 cc",{"$f":"SUM(I32:I32)","v":0},null,0]
[20,"Pastilla desinfectante para sanitario","- Con agentes bactericidas, fungicidas y virucidas.","Unidad con peso mínimo de 45 gr",{"$f":"SUM(I33:I33)","v":0},null,0]
[21,"Líquido para limpiar vidrios 1","- Con agente(s) principal(es) con efecto limpiador y desengrasante en una concentración mínima del 4%\n- Disponible mínimo en dos (2) fragancias\n - El envase debe estar  correctamente etiquetados bajo los parámetros establecidos en el sistema globalmente armonizado indicando: nombre comercial del producto, pictogramas de los compuestos peligrosos e instrucciones de uso","Líquido, en recipiente plástico con capacidad mínima de 3.785 cc",{"$f":"SUM(I34:I34)","v":0},null,0]
[22,"Líquido para limpiar vidrios 2","- Con agente(s) principal(es) con efecto limpiador y desengrasante en una concentración mínima del 4%\n- Disponible mínimo en dos (2) fragancias\n - El envase debe estar  correctamente etiquetados bajo los parámetros establecidos en el sistema globalmente armonizado indicando: nombre comercial del producto, pictogramas de los compuestos peligrosos e instrucciones de uso","Líquido, en recipiente plástico con capacidad mínima de 500 cc, con\natomizador de pistola.",{"$f":"SUM(I35:I35)","v":0},null,0]
[23,"Líquido para limpiar vidrios 3","- Con agente(s) principal(es) con efecto limpiador y desengrasante en una concentración mínima del 4%\n- Disponible mínimo en dos (2) fragancias\n - El envase debe estar  correctamente etiquetados bajo los parámetros establecidos en el sistema globalmente armonizado indicando: nombre comercial del producto, pictogramas de los compuestos peligrosos e instrucciones de uso","Líquido, en recipiente plástico de repuesto con capacidad mínima\nde 500 cc",{"$f":"SUM(I36:I36)","v":0},null,0]
[24,"Blanqueador o hipoclorito 1","- Solución con una concentración mínima del 5%\n - El  envase del producto deberá estar correctamente etiquetado, indicando: nombre comercial del producto, pictogramas de los compuestos peligrosos e instrucciones de uso\n -  El  envase del producto deberá estar correctamente etiquetado bajo los parámetros establecidos en el sistema globalmente armonizado, indicando: nombre comercial del producto, pictogramas de los compuestos peligrosos e instrucciones de uso","Líquido, en recipiente plástico con capacidad\nmínima de 3.785 cc",{"$f":"SUM(I37:I37)","v":0},null,0]
[25,"Blanqueador o hipoclorito 2","- Solución con una concentración mínima del 5%\n - El  envase del producto deberá estar correctamente etiquetado, indicando: nombre comercial del producto, pictogramas de los compuestos peligrosos e instrucciones de uso\n -  El  envase del producto deberá estar correctamente etiquetado bajo los parámetros establecidos en el sistema globalmente armonizado, indicando: nombre comercial del producto, pictogramas de los compuestos peligrosos e instrucciones de uso","Líquido, en recipiente plástico con capacidad\nmínima de 1.000 cc",{"$f":"SUM(I38:I38)","v":0},null,0]
[26,"Blanqueador o hipoclorito 3","- Granulado con una concentración mínima del 90%\n - El  envase del producto deberá estar correctamente etiquetado, indicando: nombre comercial del producto, pictogramas de los compuestos peligrosos e instrucciones de uso\n -  El  envase del producto deberá estar correctamente etiquetado bajo los parámetros establecidos en el sistema globalmente armonizado, indicando: nombre comercial del producto, pictogramas de los compuestos peligrosos e instrucciones de uso","Granulado, en bolsa plástica de mínimo\n1.000 g",{"$f":"SUM(I39:I39)","v":0},null,0]
[27,"Alcohol industrial 1"," - Solución acuosa de alcohol etílico desnaturalizado con una concentración mínima de 70%\n - Desnaturalizado","Líquido, en recipiente plástico con capacidad mínima de 3.785 cc",{"$f":"SUM(I40:I40)","v":0},null,0]
[28,"Alcohol industrial 2","- Solución acuosa de alcohol etílico desnaturalizado con una concentración mínima de 70%\n- Desnaturalizado","Líquido, en recipiente plástico con capacidad mínima de 1000cc",{"$f":"SUM(I41:I41)","v":0},null,0]
[29,"Creolina 1","- Solución con una concentración mínima de fenoles de 4%","Líquido, en recipiente\nplástico con capacidad mínima de 500 cc",{"$f":"SUM(I42:I42)","v":0},null,0]
[30,"Creolina 2","- Solución con una concentración mínima de fenoles de 4%","Líquido, en recipiente plástico con capacidad\nmínima de 3.785 cc",{"$f":"SUM(I43:I43)","v":0},null,0]
[31,"Líquido para limpiar equipos de oficina 1"," - Con agente(s) principal(es) con efecto limpiador, desengrasante y desinfectante en una concentración mínima del 4%\n - El envase debe estar  correctamente etiquetados bajo los parámetros establecidos en el sistema globalmente armonizado indicando: nombre comercial del producto, pictogramas de los compuestos peligrosos e instrucciones de uso","Líquido, en recipiente plástico con capacidad mínima de 500 cc con\natomizador",{"$f":"SUM(I44:I44)","v":0},null,0]
[32,"Líquido para limpiar equipos de oficina 2"," - Con agente(s) principal(es) con efecto limpiador, desengrasante y desinfectante en una concentración mínima del 4%\n - El envase debe estar  correctamente etiquetados bajo los parámetros establecidos en el sistema globalmente armonizado indicando: nombre comercial del producto, pictogramas de los compuestos peligrosos e instrucciones de uso","Líquido, en recipiente plástico con capacidad\nmínima de 500 cc",{"$f":"SUM(I45:I45)","v":0},null,0]
[33,"Champú para alfombras y tapizados 1","- Con agente(s) principal(es) con efecto limpiador en una concentración mínima del 8%\n - El envase debe estar  correctamente etiquetado: nombre comercial del producto, pictogramas de los compuestos peligrosos e instrucciones de uso","Líquido, en recipiente plástico con capacidad\nmínima de 3.785 cc",{"$f":"SUM(I46:I46)","v":0},null,0]
[34,"Champú para alfombras y tapizados 2","- Con agente(s) principal(es) con efecto limpiador en una concentración mínima del 8%\n- Con agente espumante para la generación de\nespuma seca\n - El envase debe estar  correctamente etiquetados: nombre comercial del producto, pictogramas de los compuestos peligrosos e instrucciones de uso","Líquido, en recipiente plástico con capacidad mínima de 500 cc ",{"$f":"SUM(I47:I47)","v":0},null,0]
[35,"Desodorizador de alfombras y tapizados","- Con agente con efecto neutralizador de la molécula de olor.","Polvo, en recipiente plástico con un peso de\nmínimo 400 gr",{"$f":"SUM(I48:I48)","v":0},null,0]
[36,"Lustrador de muebles"," - Con agentes limpiadores y abrillantadores en una concentración mínima del 5%\n -  El  envase del producto deberá estar correctamente etiquetado bajo los parámetros establecidos en el sistema globalmente armonizado, indicando: nombre comercial del producto, pictogramas de los compuestos peligrosos e instrucciones de uso","Líquido, en recipiente plástico con capacidad mínima de 200 cc",{"$f":"SUM(I49:I49)","v":0},null,0]
[37,"Líquido cubre rasguños para madera","\n-  Con agentes limpiadores y abrillantadores en una concentración mínima del 5%)\n","En recipiente plástico\ncon capacidad mínima de 240 cc",{"$f":"SUM(I50:I50)","v":0},null,0]
[38,"Crema para cuero"," - Con agentes limpiadores y abrillantadores en una concentración mínima del 5% ","Crema, en recipiente plástico con capacidad\nmínima de 200 cc",{"$f":"SUM(I51:I51)","v":0},null,0]
[39,"Cera Polimérica","- Polimérica autobrillante.\n- Con polímeros acrílicos, nivelantes y plastificantes.\n- Neutra (para pisos de todos los colores)\n- Contenido mínimo de sólidos del 10%","Líquido, en recipiente plástico con capacidad mínima de 3.785 cc",{"$f":"SUM(I52:I52)","v":0},null,0]
[40,"Cera emulsionada Neutra","- Emulsionada\n- Neutra (para pisos de todos los colores)\n- Contenido mínimo de sólidos del 5%","Líquido, en recipiente plástico con capacidad\nmínima de 3.785 cc",{"$f":"SUM(I53:I53)","v":0},null,0]
[41,"Cera emulsionada roja","- Emulsionada\n- Roja\n- Contenido mínimo de sólidos del 5%\n- Antideslizante","Líquido, en recipiente plástico con capacidad mínima de 3.785 cc",{"$f":"SUM(I54:I54)","v":0},null,0]
[42,"Cera solvente","- Solvente\n- Contenido mínimo de sólidos del 10%","Líquido, en recipiente plástico con capacidad\nmínima de 3.785 cc",{"$f":"SUM(I55:I55)","v":0},null,0]
[43,"Sellante para pisos","- Polimérico autobrillante.\n- Con polímeros acrílicos, nivelantes y plastificantes.\n- Contenido mínimo de sólidos del 20%\n - El envase debe estar  correctamente etiquetados bajo los parámetros establecidos en el sistema globalmente armonizado indicando: nombre comercial del producto, pictogramas de los compuestos peligrosos e instrucciones de uso","Líquido, en recipiente plástico con capacidad mínima de 3.785 cc",{"$f":"SUM(I56:I56)","v":0},null,0]
[44,"Mantenedor de pisos","- Polimérico autobrillante.\n- Con polímeros acrílicos, nivelantes y plastificantes.\n- Contenido mínimo de sólidos del 8%","Líquido, en recipiente\nplástico con capacidad mínima de 3.785 cc",{"$f":"SUM(I57:I57)","v":0},null,0]
[45,"Removedor de cera","- Con agente activo alcalino en una concentración mínima del 9%\n- pH entre 11 y 14","Líquido, en recipiente plástico con capacidad mínima de 3.785 cc",{"$f":"SUM(I58:I58)","v":0},null,0]
[46,"Abrillantador para piso laminado","- Con agente(s) con efecto limpiador y brillador.","Líquido, en recipiente\nplástico con capacidad mínima de 3.785 cc",{"$f":"SUM(I59:I59)","v":0},null,0]
[47,"Jabón neutro para pisos "," - Jabón multiusos\n - PH Neutro, \n - No corrosivo ni tóxico. ","Líquido, en recipiente\nplástico con capacidad mínima de 3.785 cc",{"$f":"SUM(I60:I60)","v":0},null,0]
[48,"Varsol  ecológico 1","- Solución con agentes desinfectantes, desmanchadores y desengrasantes  en concentración mínima del 15%.\n- Biodegradable mínimo en un 95%","Líquido, en recipiente plástico con capacidad mínima de 1000 cc",{"$f":"SUM(I61:I61)","v":0},null,0]
[49,"Varsol ecológico 2","- Solución con agentes desinfectantes, desmanchadores y desengrasantes  en concentración mínima del 15%.\n- Biodegradable mínimo en un 95%","Líquido, en recipiente plástico con capacidad mínima de 3.785 cc",{"$f":"SUM(I62:I62)","v":0},null,0]
[50,"Desmanchador multiusos","- Con agente(s) tensoactivo(s) con efecto limpiador y desengrasante\n- Para superficies de todo tipo.","Crema, en bolsa plástica de mínimo 500 gr",{"$f":"SUM(I63:I63)","v":0},null,0]
[51,"Brillametal en crema","- Con agentes con efecto limpiador, pulidor y brillador.\n- Para todo tipo de metales\n - El  envase del producto deberá estar correctamente etiquetado, indicando: nombre comercial del producto, pictogramas de los compuestos peligrosos e instrucciones de uso","En crema de mínimo 70 gr",{"$f":"SUM(I64:I64)","v":0},null,0]
[52,"Brillametal líquido","- Con agentes con efecto limpiador, pulidor y brillador.\n- Para todo tipo de metales","Líquido , en recipiente plástico con capacidad mínima de 250 ml",{"$f":"SUM(I65:I65)","v":0},null,0]
[53,"Betún","- Contenido mínimo de sólidos del 30%\n- Color negro","Tarro de mínimo 100 gr",{"$f":"SUM(I66:I66)","v":0},null,0]
[54,"Ambientador 1","- Solución con alcohol etílico y solventes.\n- Con fragancia en una concentración del 1,5%\n- En múltiples fragancias\n - Envase correctamente etiquetado bajo los parámetros establecidos en el sistema globalmente armonizado.","Líquido, en recipiente plástico con capacidad\nmínima de 3.785 cc",{"$f":"SUM(I67:I67)","v":0},null,0]
[55,"Ambientador 2","- Solución con alcohol etílico y solventes.\n- Con fragancia en una concentración del 1,5%\n- En múltiples fragancias\n- libre de CFC\n - Envase correctamente etiquetado bajo los parámetros establecidos indicando: nombre comercial del producto, pictogramas de los compuestos peligrosos e instrucciones de uso.","Líquido, en aerosol seguro para la capa de ozono con capacidad mínima de 400 cc",{"$f":"SUM(I68:I68)","v":0},null,0]
[56,"Insecticida 1","- Para eliminar insectos rastreros.\n- Con acción residual hasta por 4 semanas\n- Sin olor\n- Libre de CFC\n - El  envase del producto deberá estar correctamente etiquetado, indicando: nombre comercial del producto, pictogramas de los compuestos peligrosos e instrucciones de uso","Líquido, en aerosol seguro para la capa de ozono con capacidad\nmínima de 350 cc",{"$f":"SUM(I69:I69)","v":0},null,0]
[57,"Insecticida 2","- Para eliminar insectos voladores\n- Con acción residual hasta por 4 semanas\n- Sin olor\n- Libre de CFC\n - El  envase del producto deberá estar correctamente etiquetado, indicando: nombre comercial del producto, pictogramas de los compuestos peligrosos e instrucciones de uso","Líquido, en aerosol seguro para la capa de ozono con capacidad\nmínima de 350 cc",{"$f":"SUM(I70:I70)","v":0},null,0]
[58,"Limpiones 1","- En tela de toalla fileteada\n- Color blanco sin estampado\n- Tamaño mínimo de 45cm de largo por 45cm de ancho.","Unidad",{"$f":"SUM(I71:I71)","v":0},null,0]
[59,"Limpiones 2","- En tela de toalla fileteada\n- Color blanco sin estampado\n-Tamaño mínimo de 100 cm de largo por 70 cm de ancho","Unidad",{"$f":"SUM(I72:I72)","v":0},null,0]
[60,"Limpiones 3","- En tela fileteada\n- Color blanco sin estampado\n- Tamaño mínimo de 45 cm de largo por 45 cm de ancho","Unidad",{"$f":"SUM(I73:I73)","v":0},null,0]
[61,"Limpiones 4","- En tela fileteada\n- Color blanco sin estampado\n-Tamaño mínimo de 100 cm de largo por 70 cm de ancho","Unidad",{"$f":"SUM(I74:I74)","v":0},null,0]
[62,"Limpiones 5","- En tela tipo galleta fileteada\n- Color blanco o beige sin estampado\n-Tamaño mínimo de 100 cm de largo por 70 cm de ancho","Unidad",{"$f":"SUM(I75:I75)","v":0},null,0]
[63,"Bayetilla 1"," - En tela fileteada\n -  100% algodón y fibra natural \n- Color blanco sin estampado\n-Tamaño mínimo de 100 cm de largo por 70 cm de ancho","Unidad",{"$f":"SUM(I76:I76)","v":0},null,0]
[64,"Bayetilla 2"," - En tela fileteada\n - 100% algodón y fibra natural \n - Color rojo sin estampado\n -Tamaño mínimo de 100 cm de largo por 70 cm de ancho","Unidad",{"$f":"SUM(I77:I77)","v":0},null,0]
[65,"Toalla en tela blanca para pisos por metro (repuesto de haraganes)"," - Elaborado  en microfibras\n - Color blanco\n - Tamaño mínimo de 100 cm de largo por 70 cm de ancho","Unidad",{"$f":"SUM(I78:I78)","v":0},null,0]
[66,"Paño absorbente multiusos 1","- Material que no libera motas o pelusas\n-Interfoliado\n- Reutilizable\n- Tamaño mínimo de 38 cm de largo por 25 cm de ancho","Unidad",{"$f":"SUM(I79:I79)","v":0},null,{"$f":"E79*F79","v":0}]
[67,"Paño absorbente multiusos 2","- Material que no libera motas o pelusas\n- Interfolidado\n- Reutilizable\n- Tamaño mínimo de 18 cm de largo por 20 cm de ancho","Unidad",{"$f":"SUM(I80:I80)","v":0},null,0]
[68,"Estopa","- Hecha 100% de hilos de algodón blanco peinado.\n-Suave al tacto, para lustrar","Bolsa de mínimo 400 gr.",{"$f":"SUM(I81:I81)","v":0},null,0]
[69,"Esponjilla 1","- Espuma enmallada\n- Tamaño mínimo de 7 cm de largo por 10 cm de ancho","Unidad",{"$f":"SUM(I82:I82)","v":0},null,0]
[70,"Esponjilla 2","- Doble uso (material de esponjilla blanda y abrasiva)\n- Tamaño mínimo de 7 cm de largo por 10 cm de\nancho","Unidad",{"$f":"SUM(I83:I83)","v":0},null,0]
[71,"Esponjilla 3","- Abrasiva\n- Tamaño mínimo de 9 cm de largo por 12 cm de","Unidad",{"$f":"SUM(I84:I84)","v":0},null,0]
[72,"Esponjilla 4","- Elaborada con fibra de acero inoxidable para dar brillo\n- Tamaño mínimo de 5 cm de largo por 5 cm de","Unidad",{"$f":"SUM(I85:I85)","v":0},null,0]
[73,"Esponjilla 5","- Elaborada con alambre de acero inoxidable\n- Tamaño mínimo de 7 cm de largo por 10 cm de ancho","Unidad",{"$f":"SUM(I86:I86)","v":0},null,0]
[74,"Escoba 1","- Cerdas suaves elaboradas con PET calibre entre 0,3 y 0,4 mm.\n- Área de barrido mínima de 25 cm de largo por 8 cm de ancho por 10 cm de alto\n- Material de base en plástico con acople tipo rosca\n","Unidad",{"$f":"SUM(I87:I87)","v":0},null,0]
[75,"Escoba 2","- Cerdas duras elaboradas con PET calibre entre 0,4 y 0,6 mm.\n- Área de barrido mínima de 25 cm de largo por 8 cm de ancho por 10 cm de alto\n- Material de base en plástico con acople tipo rosca\n","Unidad",{"$f":"SUM(I88:I88)","v":0},null,0]
[76,"Escoba 3","- Cerdas suaves elaboradas con PET calibre entre 0,3 y 0,4 mm.\n- Área de barrido mínima de 35 cm de largo por 8 cm de ancho por 10 cm de alto\n- Material de base en plástico con acople tipo rosca\n","Unidad",{"$f":"SUM(I89:I89)","v":0},null,0]
[77,"Escoba 4","- Cerdas duras elaboradas con PET calibre entre 0,4 y 0,6 mm.\n- Área de barrido mínima de 35 cm de largo por 8 cm de ancho por 10 cm de alto\n- Material de base en plástico con acople tipo rosca\n","Unidad",{"$f":"SUM(I90:I90)","v":0},null,0]
[78,"Mango metálico escoba 1","- Extensión mínima de 140 cm\n- Acople plástico o rosca para palos de escoba\n ","Unidad",{"$f":"SUM(I91:I91)","v":0},null,0]
[79,"Mango madera escoba 1","- Extensión mínima de 140 cm\n -Acople plástico o rosca para palos de escoba\n ","Unidad",{"$f":"SUM(I92:I92)","v":0},null,0]
[80,"Cepillos 1","- Tipo plancha, con mango de plástico\n- Cuerpo elaborado en plástico\n- Cerdas duras en fibra plástica\n- Tamaño mínimo de 15 cm de largo por 5cm de ancho por 6 cm de alto.","Unidad",{"$f":"SUM(I93:I93)","v":0},null,0]
[81,"Cepillos 2","- Para pisos\n- Cuerpo elaborado en plástico\n- Cerdas duras en fibra plástica\n- Tamaño mínimo de 23 cm de largo por 6 cm de ancho por 7 cm de alto.\n- Mango metálico con una extensión mínima de\n140 cm","Unidad",{"$f":"SUM(I94:I94)","v":0},null,0]
[82,"Cepillos 3","- Para pisos\n- Cuerpo elaborado en plástico\n- Cerdas duras en fibra plástica\n- Tamaño mínimo de 35 cm de largo por 6 cm de ancho por 7 cm de alto.\n- Mango metálico con una extensión mínima de\n140 cm","Unidad",{"$f":"SUM(I95:I95)","v":0},null,0]
[83,"Trapero 1"," - Elaborado con hilaza de algodón natural\n - Mecha con peso mínimo 250 gr y extensión mínima de 32 cm de  largo\n - Material de base en plástico con acople tipo rosca\n","Unidad",{"$f":"SUM(I96:I96)","v":0},null,0]
[84,"Trapero 2","- Elaborado con hilaza de algodón natural\n- Mecha con peso mínimo de 350 gr y extensión mínima de 32 cm de largo\n- Material de base en plástico con acople tipo rosca\n","Unidad",{"$f":"SUM(I97:I97)","v":0},null,0]
[85,"Trapero 3","- Elaborado con hilaza de algodón natural\n- Mecha con peso mínimo de 450 gr y extensión mínima de 32 cm de largo\n- Material de base en plástico con acople tipo rosca","Unidad",{"$f":"SUM(I98:I98)","v":0},null,0]
[86,"Mango metálico trapero 1","- Extensión mínima de 140 cm\n- Acople plástico o rosca para palos de escoba\n ","Unidad",{"$f":"SUM(I99:I99)","v":0},null,0]
[87,"Mango madera trapero 1","- Extensión mínima de 140 cm\n- Acople plástico o rosca para palos de escoba\n ","Unidad",{"$f":"SUM(I100:I100)","v":0},null,0]
[88,"Cepillo para sanitario (churrusco)","- Cerdas duras elaboradas en fibras plásticas\n- Extensión mínima de las cerdas es de 2,5 cm\n- Base y mango elaborados en plástico\n- Mango con longitud mínima de 33 cm","Unidad",{"$f":"SUM(I101:I101)","v":0},null,0]
[89,"Pads 1","- Para brillo\n- Diámetro mínimo de 16 pulgadas\n- Rojo o blanco","Unidad",{"$f":"SUM(I102:I102)","v":0},null,0]
[90,"Pads 2","- Para remoción\n- Diámetro mínimo de 16 pulgadas\n- Café o negro","Unidad",{"$f":"SUM(I103:I103)","v":0},null,0]
[91,"Pads 3","- Para brillo\n- Diámetro mínimo de 20 pulgadas\n- Rojo o blanco","Unidad",{"$f":"SUM(I104:I104)","v":0},null,0]
[92,"Pads 4","- Para remoción\n- Diámetro mínimo de 20 pulgadas\n- Café o negro","Unidad",{"$f":"SUM(I105:I105)","v":0},null,0]
[93,"Boneth 1","- Diámetro mínimo de 16 pulgadas\n- Elaborado en hilaza de algodón","Unidad",{"$f":"SUM(I106:I106)","v":0},null,0]
[94,"Boneth 2","- Diámetro mínimo de 20 pulgadas\n- Elaborado en hilaza de algodón","Unidad",{"$f":"SUM(I107:I107)","v":0},null,0]
[95,"Bolsas plástica 1","- Elaborada en polietileno de baja densidad\n- De color negro\n- Calibre de mínimo 1\n- Tamaño de 40 cm de ancho por 55 cm de largo","Paquete de mínimo 6",{"$f":"SUM(I108:I108)","v":0},null,0]
[96,"Bolsas plástica 2","- Elaborada en polietileno de baja densidad\n- De color verde\n- Calibre de mínimo 1\n- Tamaño de 40 cm de ancho por 55 cm de largo","Paquete de mínimo 6",{"$f":"SUM(I109:I109)","v":0},null,0]
[97,"Bolsas plástica 3","- Elaborada en polietileno de baja densidad\n- De color blanco\n- Calibre de mínimo 1\n- Tamaño de 40 cm de ancho por 55 cm de largo","Paquete de mínimo 6",{"$f":"SUM(I110:I110)","v":0},null,0]
[98,"Bolsas plástica 4","- Elaborada en polietileno de baja densidad\n- De color rojo\n- Calibre de mínimo 1\n- Tamaño de 40 cm de ancho por 55 cm de largo\n - Con impresión de aviso de riesgo biológico","Paquete de mínimo 6",{"$f":"SUM(I111:I111)","v":0},null,0]
[99,"Bolsas plástica 5","- Elaborada en polietileno de baja densidad\n- De color azul\n- Calibre de mínimo 1\n- Tamaño de 40 cm de ancho por 55 cm de largo","Paquete de mínimo 6",{"$f":"SUM(I112:I112)","v":0},null,0]
[100,"Bolsas plástica 6","- Elaborada en polietileno de baja densidad\n- De color gris\n- Calibre de mínimo 1\n- Tamaño de 40 cm de ancho por 55 cm de largo","Paquete de mínimo 6",{"$f":"SUM(I113:I113)","v":0},null,0]
[101,"Bolsas plástica 7","- Elaborada en polietileno de baja densidad\n- De color amarillo\n- Calibre de mínimo 1\n- Tamaño de 40 cm de ancho por 55 cm de largo","Paquete de mínimo 6",{"$f":"SUM(I114:I114)","v":0},null,0]
[102,"Bolsas plástica 8","- Elaborada en polietileno de baja densidad\n- De color negro\n-Calibre de mínimo 2\n- Tamaño de 60 cm de ancho por 70 cm de largo","Paquete de mínimo 6",{"$f":"SUM(I115:I115)","v":0},null,0]
[103,"Bolsas plástica 9","- Elaborada en polietileno de baja densidad\n- De color verde\n- Calibre de mínimo 2\n- Tamaño de 60 cm de ancho por 70 cm de largo","Paquete de mínimo 6",{"$f":"SUM(I116:I116)","v":0},null,0]
[104,"Bolsas plástica 10","- Elaborada en polietileno de baja densidad\n- De color blanco\n- Calibre de mínimo 2\n- Tamaño de 60 cm de ancho por 70 cm de largo","Paquete de mínimo 6",{"$f":"SUM(I117:I117)","v":0},null,0]
[105,"Bolsas plástica 11","- Elaborada en polietileno de baja densidad\n- De color rojo\n- Calibre de mínimo 2\n- Tamaño de 60 cm de ancho por 70 cm de largo\n- Con impresión de aviso de riesgo biológico","Paquete de mínimo 6",{"$f":"SUM(I118:I118)","v":0},null,0]
[106,"Bolsas plástica 12","- Elaborada en polietileno de baja densidad\n- De color azul\n- Calibre de mínimo 2\n- Tamaño de 60 cm de ancho por 70 cm de largo\n","Paquete de mínimo 6",{"$f":"SUM(I119:I119)","v":0},null,0]
[107,"Bolsas plástica 13","- Elaborada en polietileno de baja densidad\n- De color gris\n- Calibre de mínimo 2\n- Tamaño de 60 cm de ancho por 70 cm de largo\n","Paquete de mínimo 6",{"$f":"SUM(I120:I120)","v":0},null,0]
[108,"Bolsas plástica 14","- Elaborada en polietileno de baja densidad\n- De color amarillo\n- Calibre de mínimo 2\n- Tamaño de 60 cm de ancho por 70 cm de largo\n","Paquete de mínimo 6",{"$f":"SUM(I121:I121)","v":0},null,0]
[109,"Bolsas plástica 15","- Elaborada en polietileno de baja densidad\n- De color negro\n- Calibre de mínimo 2\n- Tamaño de 70 cm de ancho por 90 cm de largo","Paquete de mínimo 6",{"$f":"SUM(I122:I122)","v":0},null,0]
[110,"Bolsas plástica 16","- Elaborada en polietileno de baja densidad\n- De color verde\n- Calibre de mínimo 2\n- Tamaño de 70 cm de ancho por 90 cm de largo","Paquete de mínimo 6",{"$f":"SUM(I123:I123)","v":0},null,0]
[111,"Bolsas plástica 17","- Elaborada en polietileno de baja densidad\n- De color blanco\n- Calibre de mínimo 2\n- Tamaño de 70 cm de ancho por 90 cm de largo","Paquete de mínimo 6",{"$f":"SUM(I124:I124)","v":0},null,0]
[112,"Bolsas plástica 18","- Elaborada en polietileno de baja densidad\n- De color rojo\n- Calibre de mínimo 2\n- Tamaño de 70 cm de ancho por 90 cm de largo\n- Con impresión de aviso de riesgo biológico","Paquete de mínimo 6",{"$f":"SUM(I125:I125)","v":0},null,0]
[113,"Bolsas plástica 19","- Elaborada en polietileno de baja densidad\n- De color azul\n- Calibre de mínimo 2\n- Tamaño de 70 cm de ancho por 90 cm de largo\n","Paquete de mínimo 6",{"$f":"SUM(I126:I126)","v":0},null,0]
[114,"Bolsas plástica 20","- Elaborada en polietileno de baja densidad\n- De color gris\n- Calibre de mínimo 2\n- Tamaño de 70 cm de ancho por 90 cm de largo\n","Paquete de mínimo 6",{"$f":"SUM(I127:I127)","v":0},null,0]
[115,"Bolsas plástica 21","- Elaborada en polietileno de baja densidad\n- De color amarillo\n- Calibre de mínimo 2\n- Tamaño de 70 cm de ancho por 90 cm de largo\n","Paquete de mínimo 6",{"$f":"SUM(I128:I128)","v":0},null,0]
[116,"Bolsas plástica 22","- Elaborada en polietileno de baja densidad\n- De color negro\n- Calibre de mínimo 3\n- Tamaño de 80 cm de ancho por 110 cm de largo","Paquete de mínimo 6",{"$f":"SUM(I129:I129)","v":0},null,0]
[117,"Bolsas plástica 23","- Elaborada en polietileno de baja densidad\n- De color verde\n- Calibre de mínimo 3\n- Tamaño de 80 cm de ancho por 110 cm de largo","Paquete de mínimo 6",{"$f":"SUM(I130:I130)","v":0},null,0]
[118,"Bolsas plástica 24","- Elaborada en polietileno de baja densidad\n- De color blanco\n-Calibre de mínimo 3\n- Tamaño de 80 cm de ancho por 110 cm de largo","Paquete de mínimo 6",{"$f":"SUM(I131:I131)","v":0},null,0]
[119,"Bolsas plástica 25","- Elaborada en polietileno de baja densidad\n- De color rojo\n-Calibre de mínimo 3\n- Tamaño de 80 cm de ancho por 110 cm de largo\n- Con impresión de aviso de riesgo biológico","Paquete de mínimo 6",{"$f":"SUM(I132:I132)","v":0},null,0]
[120,"Bolsas plástica 26","- Elaborada en polietileno de baja densidad\n- De color azul\n-Calibre de mínimo 3\n- Tamaño de 80 cm de ancho por 110 cm de largo\n","Paquete de mínimo 6",{"$f":"SUM(I133:I133)","v":0},null,0]
[121,"Bolsas plástica 27","- Elaborada en polietileno de baja densidad\n- De color gris\n-Calibre de mínimo 3\n- Tamaño de 80 cm de ancho por 110 cm de largo\n","Paquete de mínimo 6",{"$f":"SUM(I134:I134)","v":0},null,0]
[122,"Bolsas plástica 28","- Elaborada en polietileno de baja densidad\n- De color amarilla\n-Calibre de mínimo 3\n- Tamaño de 80 cm de ancho por 110 cm de largo\n","Paquete de mínimo 6",{"$f":"SUM(I135:I135)","v":0},null,0]
[123,"Guantes 1","- Tipo doméstico\n- Elaborados en látex\n- Calibre mínimo de 18\n- Tallas 7 a 9\n- Color amarillo","Par",{"$f":"SUM(I136:I136)","v":0},null,0]
[124,"Guantes 2","- Tipo doméstico\n- Elaborados en látex\n- Calibre mínimo de 18\n- Tallas 7 a 9\n- Color negro","Par",{"$f":"SUM(I137:I137)","v":0},null,0]
[125,"Guantes 3","- Tipo doméstico\n- Elaborados en látex\n- Calibre mínimo de 25\n- Tallas 7 a 9\n- Color negro","Par",{"$f":"SUM(I138:I138)","v":0},null,0]
[126,"Guantes 4","- Tipo doméstico\n- Elaborados en látex\n- Calibre mínimo de 25\n- Tallas 7 a 9\n- Color rojo","Par",{"$f":"SUM(I139:I139)","v":0},null,0]
[127,"Guantes 5","- Tipo industrial\n- Elaborados en látex\n- Calibre mínimo de 35\n- Tallas 7 a 9\n- Color negro","Par",{"$f":"SUM(I140:I140)","v":0},null,0]
[128,"Guantes 6","- Elaborados en látex desechable (tipo cirugía)\n- Empovaldos\n- Tallas XS-XXL","Caja de mínimo 100 unidades",{"$f":"SUM(I141:I141)","v":0},null,0]
[129,"Guantes 7","- Elaborados en carnaza\n- Tallas 7 a 9","Par",{"$f":"SUM(I142:I142)","v":0},null,0]
[130,"Guantes 8","- Tipo mosquetero\n- Calibre mínimo de 40\n- Tallas 7 a 9\n- Color negro","Par",{"$f":"SUM(I143:I143)","v":0},null,{"$f":"E143*F143","v":0}]
[131,"Guantes 9","- Elaborados en hilaza\n- Tallas 7 a 9","Par",{"$f":"SUM(I144:I144)","v":0},null,0]
[132,"Tapabocas 1","- Elaborado en tela no tejida\n- Desechable\n- Con tiras elásticas","Caja de mínimo 50 unidades",{"$f":"SUM(I145:I145)","v":0},null,0]
[133,"Tapabocas 2","- Elaborado en tela no tejida de Polipropileno y Poliéster\n- Desechable\n- Con tiras elásticas\n- Con soporte nasal","Caja de mínimo 50 unidades",{"$f":"SUM(I146:I146)","v":0},null,0]
[134,"Papel higiénico 1"," - Rollo con longitud mínima de 30 metros\n - Doble hoja blanca\n - Sin fragancia","Rollo",{"$f":"SUM(I147:I147)","v":0},null,0]
[135,"Papel higiénico 2","- Rollo con longitud mínima de 250 metros\n- Doble hoja de color natural\n- Sin fragancia","Rollo",{"$f":"SUM(I148:I148)","v":0},null,0]
[136,"Papel higiénico 3","- Rollo con longitud mínima de 250 metros\n- Doble hoja blanca\n- Sin fragancia","Rollo",{"$f":"SUM(I149:I149)","v":0},null,0]
[137,"Papel higiénico 4","- Rollo con longitud mínima de 400 metros\n- Hoja sencilla de color natural\n- Sinfragancia","Rollo",{"$f":"SUM(I150:I150)","v":0},null,0]
[138,"Papel higiénico 5"," - Rollo con longitud mínima de 400 metros\n - Hoja sencilla de color blanco\n - Sin fragancia","Rollo",{"$f":"SUM(I151:I151)","v":0},null,0]
[139,"Papel higiénico 6"," \n-Tipo multihoja blanco doble hoja\n","Paquete de mínimo\n250 unidades",{"$f":"SUM(I152:I152)","v":0},null,0]
[140,"Toallas para manos 1","- Rollo con longitud mínima de 100 metros\n- Doble hoja con un tamaño mínimo 15 cm de ancho\n- Disponibles en color blanco","Rollo",{"$f":"SUM(I153:I153)","v":0},null,0]
[141,"Toallas para manos 2","- Rollo con longitud mínima de 100 metros\n- Doble hoja con un tamaño mínimo 15 cm de ancho\n- Disponibles en color natural","Rollo",{"$f":"SUM(I154:I154)","v":0},null,0]
[142,"Toallas para manos 3"," - Rollo con longitud mínima de 150 metros\n - Doble hoja con un tamaño mínimo 15 cm de ancho\n - Disponibles en color blanco\n - Sin olor o fragancia","Rollo",{"$f":"SUM(I155:I155)","v":0},null,0]
[143,"Toallas para manos 4"," - Rollo con longitud mínima de 150 metros\n - Doble hoja con un tamaño mínimo 15 cm de ancho\n - Disponibles en color natural\n - Sin fragancia","Rollo",{"$f":"SUM(I156:I156)","v":0},null,0]
[144,"Toallas para manos 5","- Rollo con longitud mínima de 250 metros\n- Hoja sencilla  con un tamaño mínimo de15 cm de ancho\n- Hoja color natural","Rollo",{"$f":"SUM(I157:I157)","v":0},null,0]
[145,"Toallas para manos 6","- Toallas interdobladas, paquete con mínimo 150 unidades\n- Doble hoja con un tamaño mínimo de 20 cm de largo por 15 cm de ancho\n - Hoja color natural","Unidad",{"$f":"SUM(I158:I158)","v":0},null,0]
[146,"Toallas para manos 7","- Toallas interdobladas, paquete con mínimo 150 unidades\n- Doble hoja con un tamaño mínimo de 20 cm de largo por 15 cm de ancho\n - Hoja color blanco","Unidad",{"$f":"SUM(I159:I159)","v":0},null,0]
[147,"Pañuelos","- Doble hoja\n- Color blanco","Caja de mínimo 70\nunidades",{"$f":"SUM(I160:I160)","v":0},null,0]
[148,"Vasos 1","- Elaborado en plástico\n- Color blanco\n- Capacidad mínima de 9 oz","Paquete de mínimo 50 unidades",{"$f":"SUM(I161:I161)","v":0},null,0]
[149,"Vasos 2"," - Elaborado en cartón 97% biodegradable\n- Capacidad mínima de 4 oz","Paquete de mínimo 50 unidades",{"$f":"SUM(I162:I162)","v":0},null,0]
[150,"Vasos 3"," - Elaborado en cartón 97% biodegradable\n - Capacidad mínima de 6 oz","Paquete de mínimo 50",{"$f":"SUM(I163:I163)","v":0},null,0]
[151,"Vasos 4"," - Elaborado en cartón 97% biodegradable\n- Capacidad mínima de 9 oz","Paquete de mínimo 50 unidades",{"$f":"SUM(I164:I164)","v":0},null,0]
[152,"Mezclador 1","- Elaborados en plástico\n- Calibre mínimo de 2\n- Longitud mínima de 11 cm\n- Color rojo, café o blanco","Paquete de mínimo 500",{"$f":"SUM(I165:I165)","v":0},null,0]
[153,"Mezclador 2","\n - Mezcladores  elaborados en madera y/o apartir de recursos renovables como la caña de azucar y/o almidón de maíz\n  - Longitud mínima de 11 cm","Paquete de mínimo 500",{"$f":"SUM(I166:I166)","v":0},null,0]
[154,"Cuchara","- Elaboradas en plástico\n- Color blanco\n- Longitud total mínima de 16 cm","Paquete de mínimo 20 unidades",{"$f":"SUM(I167:I167)","v":0},null,0]
[155,"Tenedor 1","- Elaboradas en plástico\n- Color blanco\n- Longitud total mínima de 16 cm","Paquete de mínimo 20 unidades",{"$f":"SUM(I168:I168)","v":0},null,0]
[156,"Tenedor 2","- Elaboradas en plástico\n- Color blanco\n- Longitud total mínima de 12 cm","Paquete de mínimo 20 unidades",{"$f":"SUM(I169:I169)","v":0},null,0]
[157,"Cuchillo","- Elaborados en plástico\n- Color blanco\n- Longitud total mínima de 16 cm","Paquete de mínimo 20 unidades",{"$f":"SUM(I170:I170)","v":0},null,0]
[158,"Cuchara pequeña","- Elaboradas en plástico\n- Color blanco\n- Longitud total mínima de 12 cm","Paquete de mínimo 20 unidades",{"$f":"SUM(I171:I171)","v":0},null,0]
[159,"Platos 1","- Elaborados en plástico\n- Llanos\n- Color blanco\n- Diámetro mínimo de 22 cm","Paquete de mínimo 20 unidades",{"$f":"SUM(I172:I172)","v":0},null,0]
[160,"Platos 2","- Elaborados en plástico\n- Llanos\n- Color blanco\n- Diámetro mínimo de 15 cm","Paquete de mínimo 20 unidades",{"$f":"SUM(I173:I173)","v":0},null,0]
[161,"Platos 3","- Elaborados en plástico\n- Hondos\n- Color blanco\n- Diámetro mínimo de 25 cm","Paquete de mínimo 20 unidades",{"$f":"SUM(I174:I174)","v":0},null,0]
[162,"Servilleta papel","- Tipo cafetería\n - Dobe hoja\n- Color blanco\n- Dimensiones mínimas de 25 cm de largo y 15 cm de ancho","Paquete de mínimo 100 unidades",{"$f":"SUM(I175:I175)","v":0},null,0]
[163,"Filtro para greca 1","- Elaborada en tela\n- Para greca\n- Capacidad de media libra","Unidad",{"$f":"SUM(I176:I176)","v":0},null,0]
[164,"Filtro para greca 2","- Elaborada en tela\n- Para greca\n- Capacidad de una 1 libra","Unidad",{"$f":"SUM(I177:I177)","v":0},null,0]
[165,"Filtro para greca 3","- Elaborada en tela\n- Para greca\n- Capacidad de dos 2 libras","Unidad",{"$f":"SUM(I178:I178)","v":0},null,0]
[166,"Papel Aluminio 1","- Longitud mínima del rollo de 40 metros\n- Ancho mínimo del rollo de 27 cm","Caja de carton con un 1 rollo de mínimo 40 metros de largo y 27\ncm de ancho",{"$f":"SUM(I179:I179)","v":0},null,0]
[167,"Papel Aluminio 2","- Longitud mínima del rollo de 100 metros\n- Ancho mínimo del rollo de 27 cm","Caja de carton con un 1 rollo de mínimo 100 metros de largo y 27\ncm de ancho",{"$f":"SUM(I180:I180)","v":0},null,0]
[168,"Película transparente para alimentos","- Longitud mínima del rollo de 30 metros\n- Ancho mínimo del rollo de 27 cm","Caja de carton con un 1 rollo de mínimo 30 metros de largo y 27\ncm de ancho",{"$f":"SUM(I181:I181)","v":0},null,0]
[169,"Termo para café 1","- Elaborado en plástico\n- Capacidad mínima de 1 litro","Unidad",{"$f":"SUM(I182:I182)","v":0},null,0]
[170,"Termo para café 2"," - Térmico, con bomba tipo dispensador. Portatil.  \n - Bomba manual para dispensar la bebida.  \n - Acero inoxidable y plastico. \n - Agarradera plastica, tapa con empaque, bomba manual. \n - Capacidad mínima de 3 litros","Unidad",{"$f":"SUM(I183:I183)","v":0},null,0]
[171,"Jarra","- Elaborada en plástico\n- Capacidad mínima de 2 litros\n- Con tapa","Unidad",{"$f":"SUM(I184:I184)","v":0},null,0]
[172,"Café 1","\n- 100% café tostado y molido.   \n- Tostión media.                                          \n- Puntaje en taza mayor o igual a 80 puntos catación SCA.\n- Empacada en bolsa de polipropileno aluminizada resistente a la humedad y al oxígeno.  \n- Debe cumplir con Resolución 333 de 2011 sobre rotulado y etiquetado nutricional y las normas que la modifiquen. ","Libra",{"$f":"SUM(I185:I185)","v":0},null,0]
[173,"Café 2","- 100% café tostado y molido\n- Tipo medio\n- Descafeinado\n- Empacada en bolsa de polipropileno aluminizada resistente a la humedad y al oxigeno\n-  Debe cumplir con Resolución 333 de 2011 sobre rotulado y etiquetado nutricional y las normas que\nla modifiquen","Libra",{"$f":"SUM(I186:I186)","v":0},null,0]
[174,"Café 3","- Instantáneo, para máquinas automáticas","Bolsa de mínimo 500 gr",{"$f":"SUM(I187:I187)","v":0},null,0]
[175,"Crema para café","- No láctea\n- Debe cumplir con Resolución 333 de 2011 sobre rotulado y etiquetado nutricional y las normas que la modifiquen","Bolsas de mínimo 100 sobres de mínimo 4 gr",{"$f":"SUM(I188:I188)","v":0},null,0]
[176,"Azúcar 1","- Blanca\n- Empaque elaborado en materiales atóxicos\n- Debe cumplir con Resolución 333 de 2011 sobre rotulado y etiquetado nutricional y las normas que la modifiquen","Bolsa de mínimo 200 sobres o tubipacks de 5 gr",{"$f":"SUM(I189:I189)","v":0},null,0]
[177,"Azúcar 2","- Blanca\n- Empaque elaborado en materiales atóxicos\n- Debe cumplir con Resolución 333 de 2011 sobre rotulado y etiquetado nutricional y las normas que la modifiquen","Libra",{"$f":"SUM(I190:I190)","v":0},null,0]
[178,"Azúcar 3","- Morena\n- Empaque elaborado en materiales atóxicos\n- Debe cumplir con Resolución 333 de 2011 sobre rotulado y etiquetado nutricional y las normas que la modifiquen","Libra",{"$f":"SUM(I191:I191)","v":0},null,0]
[179,"Endulzante","- Sin calorías\n- Empaque elaborado en materiales atóxicos\n- Debe cumplir con Resolución 333 de 2011 sobre rotulado y etiquetado nutricional y las normas que la modifiquen","Caja de mínimo 100 sobres",{"$f":"SUM(I192:I192)","v":0},null,0]
[180,"Panela","- Panela instantánes pulverizada, deshidratada\n- Debe cumplir con la NTC 1311 sobreo productos agrícolas\n- Empaque elaborado en materiales atóxicos\n- Debe cumplir con la Resolucion 779 de 2006\n- Debe cumplir con Resolución 333 de 2011 sobre rotulado y etiquetado nutricional y las normas que la modifiquen","Bolsa de mínimo 100 sobres de mínimo 5 gr",{"$f":"SUM(I193:I193)","v":0},null,0]
[181,"Sal 1","- Refinada, con un 99,9% de pureza\n- Con adiciones de yodo y flúor\n- Debe cumplir con Resolución 333 de 2011 sobre rotulado y etiquetado nutricional y las normas que la modifiquen","Libra (500 gr)",{"$f":"SUM(I194:I194)","v":0},null,0]
[182,"Sal 2","- Refinada, con un 99,9% de pureza\n- Con adiciones de yodo y flúor\n- Debe cumplir con Resolución 333 de 2011 sobre rotulado y etiquetado nutricional y las normas que la modifiquen","Kilo (1.000 gramos)",{"$f":"SUM(I195:I195)","v":0},null,0]
[183,"Sal 3","- Refinada, con un 99,9% de pureza\n- Con adiciones de yodo y flúor\n- Debe cumplir con Resolución 333 de 2011 sobre rotulado y etiquetado nutricional y las normas que la modifiquen","Salero de mínimo 130 gr",{"$f":"SUM(I196:I196)","v":0},null,0]
[184,"Aromática","- Para infusión\n- Cajas disponbiles en mínimo tres (3) sabores\n- 100% naturales","Cajas de mínimo 20 en sobres.",{"$f":"SUM(I197:I197)","v":0},null,0]
[185,"Bebida de frutas","- En jarabe\n- Cajas disponbiles en mínimo tres (3) sabores","Caja de mínimo 20 sobres",{"$f":"SUM(I198:I198)","v":0},null,0]
[186,"Bebida de panela","- Bebida instantánea granulada\n- Cajas disponbiles en mínimo tres (3) sabores","Caja de mínimo 25 sobres",{"$f":"SUM(I199:I199)","v":0},null,0]
[187,"Té","- Para infusión\n- Cajas disponbiles en mínimo tres (3) sabores\n- 100% naturales","Caja x 20 mínimo sobres",{"$f":"SUM(I200:I200)","v":0},null,0]
[188,"Infusión frutal"," - Para infusión\n - 100% naturales\n - Sabores surtidos","Caja x 20 mínimo sobres",{"$f":"SUM(I201:I201)","v":0},null,0]
[189,"Agua potable 1","- Agua potable purificada sin gas","Botella plástica de\nmínimo 250 ml",{"$f":"SUM(I202:I202)","v":0},null,0]
[190,"Agua potable 2"," - Agua potable purificada sin gas","Botella plástica de\nmínimo 500 ml",{"$f":"SUM(I203:I203)","v":0},null,0]
[191,"Agua potable 3"," - Agua potable purificada\n-  Con gas","Botella plástica de\nmínimo 500 ml",{"$f":"SUM(I204:I204)","v":0},null,0]
[192,"Agua potable 4","- Agua potable potable purificada","Botellón de mínimo 18.9 litros",{"$f":"SUM(I205:I205)","v":0},null,0]
[193,"válvula dispensadora para botellón de agua","-Válvula en material plástico con boquilla ajustable a los diferentes tipos de botellones","Unidad",{"$f":"SUM(I206:I206)","v":0},null,0]
[194,"Servilleta de tela","- Elaborada en tela\n- Color blanco\n- Dimensiones mínimas de 40 cm de largo y 40 cm de ancho.","Unidad",{"$f":"SUM(I207:I207)","v":0},null,{"$f":"E207*F207","v":0}]
[195,"Cepillo para paredes y techos"," - Cuerpo elaborado en plástico\n - Cerdas duras en fibra plástica\n - Largo mínimo de 140 cm","Unidad",{"$f":"SUM(I208:I208)","v":0},null,0]
[196,"Brillador 1","- Mopa elaborada en algodón\n- Área de barrido mínima de 100 cm de largo por 16cm de ancho\n- Armazón y mango metálico","Unidad",{"$f":"SUM(I209:I209)","v":0},null,0]
[197,"Brillador 2","- Mopa elaborada en algodón\n- Área de barrido mínima de 60 cm de largo por 16cm de ancho\n- Armazón y mango metálico","Unidad",{"$f":"SUM(I210:I210)","v":0},null,0]
[198,"Repuestos brillador 1","- Mopa elaborada en algodón\n- Área de barrido mínima de 100 cm de largo por 16 cm de ancho","Unidad",{"$f":"SUM(I211:I211)","v":0},null,0]
[199,"Repuestos brillador 2","- Mopa elaborada en algodón\n- Área de barrido mínima de 60 cm de largo por 16 cm de ancho","Unidad",{"$f":"SUM(I212:I212)","v":0},null,0]
[200,"Destapador para sanitario (chupa)","- Tipo campana\n- Chupa elaborada en caucho\n- Diámetro mínimo de 12 cm\n- Mango elaborado en plástico o madera\n- Mango con longitud mínima de 33 cm","Unidad",{"$f":"SUM(I213:I213)","v":0},null,0]
[201,"Plumero o limpia polvo","- Fibras sintéticas\n- Mango de plástico\n- Largo total mínimo de 65 cm\n- Electrostático","Unidad",{"$f":"SUM(I214:I214)","v":0},null,0]
[202,"Rastrillo 1","- Barra dentada plástica con mínimo 18 dientes\n- Mango metálico  plastificado con longitud mínima de 120 cm","Unidad",{"$f":"SUM(I215:I215)","v":0},null,0]
[203,"Rastrillo 2","- Barra dentada metálica con mínimo 18 dientes\n- Mango metálico plastificado con longitud mínima de 120 cm","Unidad",{"$f":"SUM(I216:I216)","v":0},null,0]
[204,"Recogedor de basura 1","- Elaborado en plástico\n- Con banda de goma y dientas barrescobas\n- Mango con longitud mínima de 70 cm","Unidad",{"$f":"SUM(I217:I217)","v":0},null,0]
[205,"Recogedor de basura 2"," - Elaborado en plástico\n - Plegable, con tapa que abre y cierra","Unidad",{"$f":"SUM(I218:I218)","v":0},null,0]
[206,"Atomizadores","- Elaborado en plástico\n- Reutilizable\n- Capacidad mínima de 500 cc\n- con pistola","Unidad",{"$f":"SUM(I219:I219)","v":0},null,0]
[207,"Baldes (Compra)","- Elaborado en plástico\n- Capacidad de mínima de 10 litros\n- Con manija móvil\n- Con \"pico\" antiderrames\n- Disponibles en color amarillo, azul, rojo y verde","Unidad",{"$f":"SUM(I220:I220)","v":0},null,0]
[208,"Caneca para almacenar ropa sucia (compra)","- Elaborado en plástico\n- Dimensiones mínimas de 50 cm de alto por 30 cm de ancho\n- Incluye tapa\n- En colores variados","Unidad",{"$f":"SUM(I221:I221)","v":0},null,0]
[209,"Vasos (Compra) 1","- Elaborado en vidrio\n- Cilíndrico\n- Capacidad mínima de 9 oz","Unidad",{"$f":"SUM(I222:I222)","v":0},null,0]
[210,"Vasos (Compra) 2","- Elaborado en vidrio\n- Cilíndrico\n- Capacidad mínima de 12 oz","Unidad",{"$f":"SUM(I223:I223)","v":0},null,0]
[211,"Cuchara (Compra)","- Elaboradas en acero inoxidable\n- Longitud total mínima de 17 cm","Unidad",{"$f":"SUM(I224:I224)","v":0},null,0]
[212,"Tenedor (Compra)","- Elaborados en acero inoxidable\n- lisos\n- Longitud total mínima de 17 cm","Unidad",{"$f":"SUM(I225:I225)","v":0},null,0]
[213,"Cuchillo (Compra)","- Elaborados en acero inoxidable\n- lisos\n- Longitud total mínima de 20 cm","Unidad",{"$f":"SUM(I226:I226)","v":0},null,0]
[214,"Cuchara pequeña (Compra)","- Elaborados en acero inoxidable\n- lisos\n- Longitud total mínima de 12 cm","Unidad",{"$f":"SUM(I227:I227)","v":0},null,0]
[215,"Platos (Compra) 1","- Elaborados en porcelana blanca\n- Llanos\n- Color blanco sin diseño\n- Diámetro mínimo de 26 cm\n- Apto para uso en horno microondas","Unidad",{"$f":"SUM(I228:I228)","v":0}]
[216,"Platos (Compra) 2","- Elaborados en porcelana blanca\n- Llanos\n- Color blanco sin diseño\n- Diámetro mínimo de 22 cm\n- Apto para uso en horno microondas","Unidad",{"$f":"SUM(I229:I229)","v":0}]
[217,"Platos (Compra) 3","- Elaborados en porcelana blanca\n- Llanos\n- Color blanco sin diseño\n- Diámetro mínimo de 16 cm\n- Apto para uso en horno microondas","Unidad",{"$f":"SUM(I230:I230)","v":0}]
[218,"Platos (Compra) 4","- Elaborados en porcelana blanca\n- Hondo\n- Color blanco sin diseño\n- Diámetro mínimo de 17 cm\n- Apto para uso en horno microondas","Unidad",{"$f":"SUM(I231:I231)","v":0}]
[219,"Platos (Compra) 5","- Elaborados en porcelana blanca\n- Hondo\n- Color blanco  sin diseño\n- Diámetro mínimo de 22 cm\n- Apto para uso en horno microondas","Unidad",{"$f":"SUM(I232:I232)","v":0}]
[220,"Pocillos (Compra)","- Elaborado en porcelana blanca para café\n- Sin diseño\n- De mínimo 150 cc\n- No se debe rayar con el uso de cubiertos\n- Debe ser apta para uso en microondas","Unidad",{"$f":"SUM(I233:I233)","v":0},null,0]
[221,"Juego de cubiertos (Compra)","- Elaborados en acero inoxidable\n- Incluye cuchillo (longitud mínima de 20 cm), tenedor (longitud mínima de 17 cm), cuchara (longitud mínima de 17 cm), cuchara pequeña para postre (longitud mínima de 12 cm) y tenedor pequeño (longitud mínima de 12 cm).","Juego de 6 puestos",{"$f":"SUM(I234:I234)","v":0},null,0]
[222,"Terno para café ( Compra)","-Pocillo y plato de porcelana blanca para café.\n- Sin diseño\n- Plato de mínimo 12 cm de diámetro y pocillo de mínimo 150 cc\n- No se debe rayar con el uso de los cubiertos y\ndebe ser apta para uso en horno microondas.","Juego",{"$f":"SUM(I235:I235)","v":0},null,0]
[223,"Vajilla (Compra) 1","- Elaborada en porcelana\n- Sin diseño\n- Compuesta de 8 puestos y cuatro piezas por puesto:\n- Plato para cena (diámetro mínimo de 26 cm)\n- Plato hondo (diámetro mínimo de 20 cm)\n- Plato auxiliar (diámetro mínimo de 16 cm)\n- Taza (capacidad mínima es de 280 cc)\n- Apta para uso en horno microondas.","Juego",{"$f":"SUM(I236:I236)","v":0},null,0]
[224,"Vajilla (Compra) 2","- Elaborada en porcelana\n- Sin diseño\n- Compuesta de 4 puestos y cuatro piezas por puesto:\n- Plato para cena (diámetro mínimo de 26 cm)\n- Plato hondo (diámetro mínimo de 20 cm)\n- Plato auxiliar (diámetro mínimo de 16 cm)\n- Taza (capacidad mínima es de 280 cc)\n- Apta para uso en horno microondas.","Juego",{"$f":"SUM(I237:I237)","v":0},null,0]
[225,"Cuchillo de cocina (Compra)","- Hoja elaborada en acero inoxidable de mínimo 20 cm de largo y 2 cm de ancho.\n- Mango liso elaborado en polipropileno negro","Unidad",{"$f":"SUM(I238:I238)","v":0},null,0]
[226,"Tijeras de cocina (Compra)","- Hojas elaborada en acero inoxidable de mínimo 20 cm de largo\n- Mango de plástico liso","Unidad",{"$f":"SUM(I239:I239)","v":0},null,0]
[227,"Jarra (Compra)","- Elaborada en vidrio\n- Sin diseño\n- Capacidad mínima de 1,5 litros","Unidad",{"$f":"SUM(I240:I240)","v":0},null,0]
[228,"Combustible adicional para Cortadora de césped, sopladora de hojas y guadañas"," - Gasolina ","Galón",{"$f":"SUM(I241:I241)","v":0},null,0]
[229,"Organizador  porta escobas (Compra)","- Con capacidad para organizar mínimo 4 escobas de manera simultánea","Unidad",{"$f":"SUM(I242:I242)","v":0},null,0]
[230,"Espátula (Compra)","- Metálica con mango de plástico\n- Con hoja de mínimo 2 pulgadas de largo","Unidad",{"$f":"SUM(I243:I243)","v":0},null,0]
[231,"Haraganes 1 (Compra)","- Para limpiar vidrios\n- Con banda de goma con longitud mínima de 25 cm.\n- Mango con longitud mínima de 60 cm","Unidad",{"$f":"SUM(I244:I244)","v":0},null,0]
[232,"Haraganes 2 (Compra)","- Para limpiar vidrios\n- Con banda de goma con longitud mínima de 50 cm.\n- Mango metálico extensible con longitud mínima\nde 60 cm y máxima de 150 cm","Unidad",{"$f":"SUM(I245:I245)","v":0}]
[233,"Haraganes 3 (Compra)","- Para escurrir pisos\n- Con banda de goma con longitud mínima de 35 cm","Unidad",{"$f":"SUM(I246:I246)","v":0},null,0]
[234,"Haraganes 4 (Compra)","- Para escurrir pisos\n-Con banda de goma con longitud mínima de 50 cm.","Unidad",{"$f":"SUM(I247:I247)","v":0},null,0]
[]
["Precio total insumos por mes",null,null,null,null,null,{"$f":"SUM(G14:G247)","v":0}]
[]
["B. Elementos, equipos y maquinaria"]
[]
["No.","Bien","Especificación ","Presentación ","Cantidad Mensual","Precio unitario","Total",null,{"$f":"I13","v":"Sede 1"}]
[235,"Baldes (arrendamiento)","- Elaborado en plástico\n- Capacidad de mínima de 10 litros\n- Con manija móvil\n- Con \"pico\" antiderrames\n- Disponibles en color amarillo, azul y rojo","Unidad",{"$f":"SUM(I254:I254)","v":0},null,{"$f":"E254*F254","v":0}]
[236,"Caneca para almacenar ropa sucia (arrendamiento)","¨- Elaborado en plástico\n- Dimensiones mínimas de 50 cm de alto por 30 cm de ancho\n- Incluye tapa\n- En colores variados","Unidad",{"$f":"SUM(I255:I255)","v":0},null,0]
[237,"Vasos (Arrendamiento) 1","- Elaborado en vidrio\n- Cilíndrico\n- Capacidad mínima de 9 oz","Unidad",{"$f":"SUM(I256:I256)","v":0},null,0]
[238,"Vasos (Arrendamiento) 2","- Elaborado en vidrio\n- Cilíndrico\n- Capacidad mínima de 12 oz","Unidad",{"$f":"SUM(I257:I257)","v":0},null,0]
[239,"Cuchara (Arrendamiento)","- Elaboradas en acero inoxidable\n- liso\n- Longitud total mínima de 17 cm","Unidad",{"$f":"SUM(I258:I258)","v":0},null,0]
[240,"Tenedor (Arrendamiento)","- Elaborados en acero inoxidable\n- liso\n- Longitud total mínima de 17 cm","Unidad",{"$f":"SUM(I259:I259)","v":0},null,0]
[241,"Cuchillo (Arrendamiento)","- Elaborados en acero inoxidable\n- liso\n- Longitud total mínima de 20 cm","Unidad",{"$f":"SUM(I260:I260)","v":0},null,0]
[242,"Cuchara pequeña (Arrendamiento)","- Elaborados en acero inoxidable\n- Liso\n- Longitud total mínima de 12 cm","Unidad",{"$f":"SUM(I261:I261)","v":0},null,0]
[243,"Platos (Arrendamiento) 1","- Elaborados en porcelana blanca\n- Llanos\n- Color blanco\n_ Sin diseño\n- Diámetro mínimo de 26 cm\n- Apto para uso en horno microondas","Unidad",{"$f":"SUM(I262:I262)","v":0},null,0]
[244,"Platos (Arrendamiento) 2","- Elaborados en porcelana blanca\n- Llanos\n- Color blanco\n- Sin duseño\n- Diámetro mínimo de 22 cm\n- Apto para uso en horno microondas","Unidad",{"$f":"SUM(I263:I263)","v":0},null,0]
[245,"Platos (Arrendamiento) 3","- Elaborados en porcelana blanca\n- Llanos\n- Color blanco\n- Diámetro mínimo de 16 cm\n- Apto para uso en horno microondas","Unidad",{"$f":"SUM(I264:I264)","v":0},null,0]
[246,"Platos (Arrendamiento) 4","- Elaborados en porcelana blanca\n- Hondo\n- Color blanco\n- Diámetro mínimo de 17 cm\n- Apto para uso en horno microondas","Unidad",{"$f":"SUM(I265:I265)","v":0},null,0]
[247,"Platos (Arrendamiento) 5","- Elaborados en porcelana blanca\n- Hondo\n- Color blanco\n- Diámetro mínimo de 22 cm\n- Apto para uso en horno microondas","Unidad",{"$f":"SUM(I266:I266)","v":0},null,0]
[248,"Pocillos (Arrendamiento)","- Elaborado en porcelana blanca para café\n- De mínimo 170 cc\n- No se debe rayar con el uso de cubiertos\n- Debe ser apta para uso en microondas","Unidad",{"$f":"SUM(I267:I267)","v":0},null,0]
[249,"Juego de cubiertos (Arrendamiento)","- Elaborados en acero inoxidable\n- Incluye cuchillo (longitud mínima de 20 cm), tenedor (longitud mínima de 17 cm), cuchara (longitud mínima de 17 cm), cuchara pequeña para postre (longitud mínima de 12 cm) y tenedor pequeño (longitud mínima de 12 cm).","Juego",{"$f":"SUM(I268:I268)","v":0},null,0]
[250,"Terno para café (Arrendamiento)","-Pocillo y plato de porcelana blanca para café.\n- Plato de mínimo 13 cm de diámetro y pocillo de mínimo 170 cc\n- No se debe rayar con el uso de los cubiertos y\ndebe ser apta para uso en horno microondas.","Juego",{"$f":"SUM(I269:I269)","v":0},null,0]
[251,"Cafetera 1"," - Capacidad mínima de 12 tazas\n - 120 voltios\n - Potencia mínima de 900 w\n - Filtro permanente\n - Material plástico\n - Jarra de vidrio","Unidad",{"$f":"SUM(I270:I270)","v":0},null,0]
[252,"Vajilla (Arrendamiento) 1","- Elaborada en porcelana\n- Compuesta de 8 puestos y cuatro piezas por puesto:\n- Plato para cena (diámetro mínimo de 26 cm)\n- Plato hondo (diámetro mínimo de 20 cm)\n- Plato auxiliar (diámetro mínimo de 17 cm)\n- Taza (capacidad mínima es de 280 cc)\n- Apta para uso en horno microondas","Juego",{"$f":"SUM(I271:I271)","v":0},null,0]
[253,"Vajilla (Arrendamiento) 2","- Elaborada en porcelana\n- Compuesta de 4 puestos y cuatro piezas por puesto:\n- Plato para cena (diámetro mínimo de 26 cm)\n- Plato hondo (diámetro mínimo de 20 cm)\n- Plato auxiliar (diámetro mínimo de 17 cm)\n- Taza (capacidad mínima es de 280 cc)\n- Apta para uso en horno microondas","Juego",{"$f":"SUM(I272:I272)","v":0},null,0]
[254,"Portavasos","- Elaborado en acero inoxidable\n- Diámetro mínimo de 12 cm","Unidad",{"$f":"SUM(I273:I273)","v":0},null,0]
[255,"Cuchillo de cocina (Arrendamiento)","- Hoja elaborada en acero inoxidable de mínimo 20 cm de largo y 2 cm de ancho.\n- Mango liso elaborado en polipropileno negro","Unidad",{"$f":"SUM(I274:I274)","v":0},null,0]
[256,"Tijeras de cocina (Arrendamiento)","- Hojas elaborada en acero inoxidable de mínimo 20 cm de largo\n- Mango de plástico liso","Unidad",{"$f":"SUM(I275:I275)","v":0},null,0]
[257,"Jarra (Arrendamiento)","- Elaborada en vidrio\n- Capacidad mínima de 1,5 litros","Unidad",{"$f":"SUM(I276:I276)","v":0},null,0]
[258,"Bandeja 1","- Elaborada en acero inoxidable\n- Sin diseño\n- Dimensiones mínimas de 37 cm de largo por 27 cm de ancho","Unidad",{"$f":"SUM(I277:I277)","v":0},null,0]
[259,"Bandeja 2","- Elaborada en acero inoxidable\n- Sin diseño\n- Dimensiones mínimas de 50 cm de largo por 33 cm de ancho","Unidad",{"$f":"SUM(I278:I278)","v":0},null,0]
[260,"Bandeja 3","- Elaborada en plástico\n- Superficie antideslizante\n- Diseño sencillo\n- Dimensiones mínimas de 37cm de largo por 27 cm de ancho\n- Color blanco o beige","Unidad",{"$f":"SUM(I279:I279)","v":0},null,0]
[261,"Bandeja 4","- Elaborada en plástico\n- Superficie antideslizante\n- Diseño sencillo\n- Dimensiones mínimas de 45 cm de largo por 35 cm de ancho\n- Color blanco o beige","Unidad",{"$f":"SUM(I280:I280)","v":0},null,0]
[262,"Olleta","- Elaborada en aluminio\n- Capacidad mínima de 2 litros","Unidad",{"$f":"SUM(I281:I281)","v":0},null,0]
[263,"Olla 1","- Elaborada en aluminio\n- Con tapa en aluminio\n- Capacidad mínima de 3 litros","Unidad",{"$f":"SUM(I282:I282)","v":0},null,0]
[264,"Olla 2","- Elaborada en aluminio\n- Con tapa en aluminio\n- Capacidad mínima de 5 litros","Unidad",{"$f":"SUM(I283:I283)","v":0},null,0]
[265,"Escurridor para platos","- Elaborado en plástico\n- Con rejilla, portacubiertos y bandeja plástica de goteo\n- Dimensiones mínimas de 40 cm de largo y 30 cm de ancho","Unidad",{"$f":"SUM(I284:I284)","v":0},null,0]
[266,"Soporte para Botellón de agua"," - Metálico\n- Plegable","Unidad",{"$f":"SUM(I285:I285)","v":0},null,0]
[267,"Carro exprimidor de trapero 1"," - Elaborado en plástico\n - Capacidad mínima de 24 litros\n - Con cuatro ruedas y manija de escurridor","Unidad",{"$f":"SUM(I286:I286)","v":0},null,0]
[268,"Carro exprimidor de trapero 2","- Elaborado en plástico\n- Capacidad mínima de 35 litros\n- Con cuatro ruedas y manija de escurridor","Unidad",{"$f":"SUM(I287:I287)","v":0},null,0]
[269,"Carros para limpieza","- Tamaño mínimo de 70 cm de largo por 50 cm de ancho por 95 cm de alto\n- Mínimo dos bandejas de servicio\n- Con mínimo una bolsa de limpieza\n- Con plataforma para balde escurridor\n- Con cuatro ruedas antirayones\n- Ruedas delanteras con ángulo de giro de 360 grados","Unidad",{"$f":"SUM(I288:I288)","v":0},null,0]
[270,"Carro de bebidas","- Elaborado en plástico\n- Mínimo dos estantes para distribución de bebidas\n- Tamaño mínimo de 80 cm de largo por 47 cm de ancho por 90 cm de alto","Unidad",{"$f":"SUM(I289:I289)","v":0},null,0]
[271,"Escalera 1"," - Cuerpo plástico\n- Altura mínima de mínimo dos pasos.","Unidad",{"$f":"SUM(I290:I290)","v":0},null,0]
[272,"Escalera 2"," - Cuerpo Metálico\n- Altura mínima de  mínimo dos pasos.","Unidad",{"$f":"SUM(I291:I291)","v":0},null,0]
[273,"Escalera 3"," - Cuerpo Metálico\n- Altura mínima de mínimo cuatro pasos.","Unidad",{"$f":"SUM(I292:I292)","v":0},null,0]
[274,"Escalera 4"," - Cuerpo Metálico\n- Altura mínima de mínimo seis pasos. ","Unidad",{"$f":"SUM(I293:I293)","v":0},null,0]
[275,"Escalera de tipo industrial","Cuerpo en aluminio, tipo tijera\n- Altura mínima de 5 escalones\n- Con capacidad de resistencia a una carga concentrada en cualquier punto del escalón de 127 kg\n- Con tapones de caucho antideslizantes","Unidad",{"$f":"SUM(I294:I294)","v":0},null,0]
[276,"Mangueras 1"," - Longitud mínima de 20 metros\n - Elaborada en PVC\n - Con terminales roscadas en ambos extremos\n - Incluye accesorios: acoples y pistola ","Unidad",{"$f":"SUM(I295:I295)","v":0},null,0]
[277,"Mangueras 2","- Longitud mínima de 30 metros\n- Elaborada en PVC\n- Con terminales roscadas en ambos extremos\n- Incluye accesorios: acoples y pistola","Unidad",{"$f":"SUM(I296:I296)","v":0},null,0]
[278,"Mangueras 3","- Longitud mínima de 50 metros\n- Elaborada en PVC\n- Con terminales roscadas en ambos extremos\n- Incluye accesorios: acoples y pistola","Unidad",{"$f":"SUM(I297:I297)","v":0},null,0]
[279,"Contenedor de basura 1","- Elaborado en plástico\n- Tapa con pedal\n- Capacidad mínima de 10 litros\n- Color azul\n- Impresión de la palabra \"Plásticos\" en la cara delantera del contenedor","Unidad",{"$f":"SUM(I298:I298)","v":0},null,0]
[280,"Contenedor de basura 2","- Elaborado en plástico\n- Tapa con pedal\n- Capacidad mínima de 10 litros\n- Color gris\n- Impresión de las palabras \"Papel y cartón\" en la cara delantera del contenedor","Unidad",{"$f":"SUM(I299:I299)","v":0},null,0]
[281,"Contenedor de basura 3","- Elaborado en plástico\n- Tapa con pedal\n- Capacidad mínima de 10 litros\n- Color verde\n- Impresión de las palabras  \"No reciclables\" u \"Orgánicos\" u \"Ordinarios\" en la cara delantera del contenedor","Unidad",{"$f":"SUM(I300:I300)","v":0},null,0]
[282,"Contenedor de basura 4","- Elaborado en plástico\n- Tapa con pedal\n- Capacidad mínima de 10 litros\n- Color rojo\n- Impresión de las palabras \"Riesgo biológico\" o \"Residuos peligrosos\" en la cara delantera del contenedor","Unidad",{"$f":"SUM(I301:I301)","v":0},null,0]
[283,"Contenedor de basura 5","- Elaborado en plástico\n- Tapa con pedal\n- Capacidad mínima de 20 litros\n- Color azul\n- Impresión de la palabra \"Plásticos\" en la cara delantera del contenedor","Unidad",{"$f":"SUM(I302:I302)","v":0},null,0]
[284,"Contenedor de basura 6","- Elaborado en plástico\n- Tapa con pedal\n- Capacidad mínima de 20 litros\n- Color gris\n- Impresión de las palabras \"Papel y cartón\" en la cara delantera del contenedor","Unidad",{"$f":"SUM(I303:I303)","v":0},null,0]
[285,"Contenedor de basura 7","- Elaborado en plástico\n- Tapa con pedal\n- Capacidad mínima de 20 litros\n- Color verde\n- Impresión de las palabras  \"No reciclables\" u \"Orgánicos\" u \"Ordinarios\" en la cara delantera del contenedor","Unidad",{"$f":"SUM(I304:I304)","v":0},null,0]
[286,"Contenedor de basura 8","- Elaborado en plástico\n- Tapa con pedal\n- Capacidad mínima de 20 litros\n- Color rojo\n- Impresión de las palabras \"Riesgo biológico\" o \"Residuos peligrosos\" en la cara delantera del\ncontenedor","Unidad",{"$f":"SUM(I305:I305)","v":0},null,0]
[287,"Contenedor de basura 9","- Elaborado en plástico\n- Con tapa en vaivén\n- Capacidad mínima de 50 litros\n- Color azul\n- Impresión de la palabra \"Plásticos\" en la cara delantera del contenedor","Unidad",{"$f":"SUM(I306:I306)","v":0},null,0]
[288,"Contenedor de basura 10","- Elaborado en plástico\n- Con tapa en vaivén\n- Capacidad mínima de 50 litros\n- Color gris\n- Impresión de las palabras \"Papel y cartón\" en la cara delantera del contenedor","Unidad",{"$f":"SUM(I307:I307)","v":0},null,0]
[289,"Contenedor de basura 11","- Elaborado en plástico\n- Con tapa en vaivén\n- Capacidad mínima de 50 litros\n- Color verde\n- Impresión de las palabras  \"No reciclables\" u \"Orgánicos\" u \"Ordinarios\" en la cara delantera del contenedor","Unidad",{"$f":"SUM(I308:I308)","v":0},null,0]
[290,"Contenedor de basura 12","- Elaborado en plástico\n- Con tapa en vaivén\n- Capacidad mínima de 50 litros\n- Color rojo\n- Impresión de las palabras \"Riesgo biológico\" o \"Residuos peligrosos\" en la cara delantera del contenedor","Unidad",{"$f":"SUM(I309:I309)","v":0},null,0]
[291,"Contenedor de basura 13","- Elaborado en plástico\n-- Con tapa en vaivén\n- Capacidad mínima de 120 litros\n- Color azul\n- Impresión de la palabra \"Plásticos\" en la cara delantera del contenedor","Unidad",{"$f":"SUM(I310:I310)","v":0},null,0]
[292,"Contenedor de basura 14","- Elaborado en plástico\n- Con tapa en vaivén\n- Capacidad mínima de 120 litros\n- Color gris\n- Impresión de las palabras \"Papel y cartón\" en la cara delantera del contenedor","Unidad",{"$f":"SUM(I311:I311)","v":0},null,0]
[293,"Contenedor de basura 15","- Elaborado en plástico\n- Con tapa en vaivén\n- Capacidad mínima de 120 litros\n- Color verde\n- Impresión de las palabras \"No reciclables\" u \"Orgánicos\" u \"Ordinarios\" en la cara delantera del contenedor","Unidad",{"$f":"SUM(I312:I312)","v":0},null,0]
[294,"Contenedor de basura 16","- Elaborado en plástico\n- Con tapa en vaivén\n- Capacidad mínima de 120 litros\n- Color rojo\n- Impresión de las palabras \"Riesgo biológico\" o\n\"Residuos peligrosos\" en la cara delantera del contenedor","Unidad",{"$f":"SUM(I313:I313)","v":0},null,0]
[295,"Contenedor de basura 17","- Elaborado en plástico\n- Con tapa\n- Capacidad mínima de 180 litros\n- Color azul\n- Con ruedas traseras macizas y manijas","Unidad",{"$f":"SUM(I314:I314)","v":0},null,0]
[296,"Contenedor de basura 18","- Elaborado en plástico\n- Con tapa\n- Capacidad mínima de 180 litros\n- Color verde\n- Con ruedas traseras macizas y manijas","Unidad",{"$f":"SUM(I315:I315)","v":0},null,0]
[297,"Contenedor de basura 19","- Elaborado en plástico\n- Con tapa\n- Capacidad mínima de 180 litros\n- Color gris\n- Con ruedas traseras macizas y manijas","Unidad",{"$f":"SUM(I316:I316)","v":0},null,0]
[298,"Contenedor de basura 20","- Elaborado en plástico\n- Con tapa\n- Capacidad mínima de 240 litros\n- Color azul\n- Con ruedas traseras macizas y manijas","Unidad",{"$f":"SUM(I317:I317)","v":0},null,0]
[299,"Contenedor de basura 21","- Elaborado en plástico\n- Con tapa\n- Capacidad mínima de 240 litros\n- Color verde\n- Con ruedas traseras macizas y manijas","Unidad",{"$f":"SUM(I318:I318)","v":0},null,{"$f":"E318*F318","v":0}]
[300,"Contenedor de basura 22","- Elaborado en plástico\n- Con tapa\n- Capacidad mínima de 240 litros\n- Color gris\n- Con ruedas traseras macizas y manijas","Unidad",{"$f":"SUM(I319:I319)","v":0},null,0]
[301,"Contenedor de basura 23","- Elaborado en plástico\n- Con tapa\n- Capacidad mínima de 340 litros\n- Color azul\n- Con ruedas traseras macizas y manijas","Unidad",{"$f":"SUM(I320:I320)","v":0},null,0]
[302,"Contenedor de basura 24","- Elaborado en plástico\n- Con tapa\n- Capacidad mínima de 340 litros\n- Color verde\n- Con ruedas traseras macizas y manijas","Unidad",{"$f":"SUM(I321:I321)","v":0},null,0]
[303,"Contenedor de basura 25","- Elaborado en plástico\n- Con tapa\n- Capacidad mínima de 340 litros\n- Color gris\n- Con ruedas traseras macizas y manijas","Unidad",{"$f":"SUM(I322:I322)","v":0},null,0]
[304,"Contenedor de basura 26","- Elaborado en plástico\n- Con tapa\n- Capacidad mínima de 760 litros\n- Color azul\n- Con ruedas traseras macizas y manijas","Unidad",{"$f":"SUM(I323:I323)","v":0},null,0]
[305,"Contenedor de basura 27","- Elaborado en plástico\n- Con tapa\n- Capacidad mínima de 760 litros\n- Color verde\n- Con ruedas traseras macizas y manijas","Unidad",{"$f":"SUM(I324:I324)","v":0},null,0]
[306,"Contenedor de basura 28","- Elaborado en plástico\n- Con tapa\n- Capacidad mínima de 760 litros\n- Color gris\n- Con ruedas traseras macizas y manijas","Unidad",{"$f":"SUM(I325:I325)","v":0},null,0]
[307,"Contenedor de basura 29","- Elaborado en plástico\n- Con tapa\n- Capacidad mínima de 1.000 litros\n- Color gris\n- Con ruedas traseras macizas y manijas","Unidad",{"$f":"SUM(I326:I326)","v":0},null,0]
[308,"Contenedor de basura 30","- Elaborado en plástico\n- Con tapa\n- Capacidad mínima de 1.000 litros\n- Color verde\n- Con ruedas traseras macizas y manijas","Unidad",{"$f":"SUM(I327:I327)","v":0},null,0]
[309,"Punto Ecológico 1","- Base metálica\n- Mínimo tres contenedores así:\n- Contenedor azul con tapa con palabra \"Plásticos\" en la cara frontal\n- Contenedor verde con tapa con palabras \"No reciclables\" u \"Orgánicos\" u \"Ordinarios\" en la cara frontal\n- Contenedor gris con tapa con palabras \"Papel y cartón\" en la cara frontal\n- Capacidad mínima de 20 litros para cada contenedor\n- Contenedores elaborados en plástico","Unidad",{"$f":"SUM(I328:I328)","v":0},null,0]
[310,"Punto Ecológico 2","- Base metálica\n- Mínimo tres contenedores así:\n- Contenedor azul con tapa con palabra \"Plásticos\" en la cara frontal\n- Contenedor verde con tapa con palabras \"No reciclables\" u \"Orgánicos\" u \"Ordinarios\" en la cara frontal\n- Contenedor gris con tapa con palabras \"Papel y cartón\" en la cara frontal\n- Capacidad mínima de 35 litros para cada contenedor\n- Contenedores elaborados en plástico","Unidad",{"$f":"SUM(I329:I329)","v":0},null,0]
[311,"Punto Ecológico 3","- Base metálica con techo en material metálico\n- Mínimo tres contenedores así:\n- Contenedor azul con tapa con palabra \"Plásticos\" en la cara frontal\n- Contenedor verde con tapa con palabras \"No reciclables\" u \"Orgánicos\" u \"Ordinarios\" en la cara frontal\n- Contenedor gris con tapa con palabras \"Papel y cartón\" en la cara frontal\n- Capacidad mínima de 35 litros para cada contenedor\n- Contenedores elaborados en plástico","Unidad",{"$f":"SUM(I330:I330)","v":0},null,0]
[312,"Punto Ecológico 4","- Base metálica\n- Mínimo tres contenedores así:\n- Contenedor azul con tapa con palabra \"Plásticos\" en la cara frontal\n- Contenedor verde con tapa con palabras \"No reciclables\" u \"Orgánicos\" u \"Ordinarios\" en la cara frontal\n- Contenedor gris con tapa con palabras \"Papel y cartón\" en la cara frontal\n- Capacidad mínima de 50 litros para cada contenedor\n- Contenedores elaborados en plástico","Unidad",{"$f":"SUM(I331:I331)","v":0},null,0]
[313,"Punto Ecológico 5","- Base metálica con techo en material metálico\n- Mínimo tres contenedores así:\n- Contenedor azul con tapa con palabra \"Plásticos\" en la cara frontal\n- Contenedor verde con tapa con palabras \"No reciclables\" u \"Orgánicos\" u \"Ordinarios\" en la cara frontal\n- Contenedor gris con tapa con palabras \"Papel y cartón\" en la cara frontal\n- Capacidad mínima de 50 litros para cada contenedor\n- Contenedores elaborados en plástico","Unidad",{"$f":"SUM(I332:I332)","v":0},null,0]
[314,"Punto Ecológico 6","- Base metálica\n- Mínimo tres contenedores así:\n- Contenedor azul con tapa con palabra \"Plásticos\" en la cara frontal\n- Contenedor verde con tapa con palabras \"No reciclables\" u \"Orgánicos\" u \"Ordinarios\" en la cara frontal\n- Contenedor gris con tapa con palabras \"Papel y cartón\" en la cara frontal\n- Capacidad mínima de 100 litros para cada contenedor\n- Contenedores elaborados en plástico","Unidad",{"$f":"SUM(I333:I333)","v":0},null,0]
[315,"Papelera 1","- Cuerpo metálico enmallado sin tapa\n- Con capacidad mínima de 10 litros\n- Diseño para oficina","Unidad",{"$f":"SUM(I334:I334)","v":0},null,0]
[316,"Papelera 2","- Cuerpo plástico\n- Con mecanismo de pedal para abrir y cerrar tapa\n- Con capacidad mínima de 10 litros\n- Diseño para baño","Unidad",{"$f":"SUM(I335:I335)","v":0},null,0]
[317,"Papelera 3","- Cuerpo plástico sin tapa\n- Con capacidad mínima de 10 litros\n- Diseño para baño","Unidad",{"$f":"SUM(I336:I336)","v":0},null,0]
[318,"Señales peatonales de prevención y atención 1","- Elaborado en plástico\n- Tipo tijera, plegable\n- Tamaño mínimo de 25 cm de ancho por 60 cm de alto por 22 cm de largo.\n- Impresión en las dos caras con las palabras \"Cerrado\" o \"Área cerrada\" o \"No pasar\".\n- Color amarillo","Unidad",{"$f":"SUM(I337:I337)","v":0},null,0]
[319,"Señales peatonales de prevención y atención 2","- Elaborado en plástico\n- Tipo tijera, plegable\n- Tamaño mínimo de 25 cm de ancho por 60 cm de alto por 22 cm de largo.\n- Impresión en las dos caras con las palabras \"Cuidado\".\n- Color amarillo\n- Acordes con la reglamentación establecida por la NTC 1461","Unidad",{"$f":"SUM(I338:I338)","v":0},null,0]
[320,"Señales peatonales de prevención y atención 3","- Elaborado en plástico\n- Tipo tijera, plegable\n- Tamaño mínimo de 25 cm de ancho por 60 cm de alto por 22 cm de largo.\n- Impresión en las dos caras con las palabras \"Piso húmedo o \"Piso mojado\"\".\n- Color amarillo\n- Acordes con la reglamentación establecida por la NTC 1461","Unidad",{"$f":"SUM(I339:I339)","v":0},null,0]
[321,"Dispensador para papel higiénico 1","- Elaborado en plástico ABS blanco\n- Para rollo de 250 metros y 400 metros\n- Con visor para ver el estado del rollo\n- Con cerradura y llave\n- Incluye los elementos necesarios para realizar la instalación en pared\n-Incluye el costo de instalación.","Unidad",{"$f":"SUM(I340:I340)","v":0},null,0]
[322,"Dispensador para papel higiénico 2","- Elaborado en acero inoxidable\n- Para rollo de 250 metros y 400 metros\n- Con visor para ver el estado del rollo\n- Con cerradura y llave\n- Incluye los elementos necesarios para realizar la instalación en pared\n-Incluye el costo de instalación.","Unidad",{"$f":"SUM(I341:I341)","v":0},null,0]
[323,"Dispensador de toallas de manos 1","- Elaborado en plástico ABS\n- Para toallas de papel en rollo de 150 metros y 250 metros\n- Con mecanismo accionador de palanca, perilla giratoria o para halar con la mano.\n- Con cuchilla serrada para cortar la toalla de manos\n- Con cerradura y llave\n- Incluye los elementos necesarios para realizar la instalación en pared\n - Incluye el costo de instalación","Unidad",{"$f":"SUM(I342:I342)","v":0},null,0]
[324,"Dispensador de toallas de manos 2","- Elaborado en plástico ABS\n- Para toallas de papel interdobladas con capacidad mínima de 300 toallas\n- Con mecanismo para halar con la mano.\n- Con cerradura y llave\n- Incluye los elementos necesarios para realizar la instalación en pared\n-Incluye el costo de instalación","Unidad",{"$f":"SUM(I343:I343)","v":0},null,0]
[325,"Dispensador de toallas de manos 3","- Elaborado en acero inoxidable\n- Para toallas de papel interdobladas con capacidad mínima de 300 toallas\n- Con mecanismo para halar con la mano.\n- Con cerradura y llave\n- Incluye los elementos necesarios para realizar la instalación en pared\n-Incluye el costo de instalación","Unidad",{"$f":"SUM(I344:I344)","v":0},null,0]
[326,"Dispensador de jabón líquido 1","- Elaborado en plástico ABS blanco\n- Con válvula manual anticorrosiva.\n- Uso habilitado para cualquier jabón líquido con capacidad mínima de 800 cc\n- Con cerradura y llave\n- Incluye los elementos necesarios para realizar la instalación en pared\n-Incluye el costo de instalación","Unidad",{"$f":"SUM(I345:I345)","v":0},null,0]
[327,"Dispensador de jabón líquido 2","- Elaborado en plástico ABS blanco\n- Con sensor para suministro de jabón\n- Uso habilitado para cualquier jabón líquido con capacidad mínima de 800 cc\n- Con cerradura y llave\n- Incluye los elementos necesarios para realizar la instalación en pared\n -Incluye el costo de instalación","Unidad",{"$f":"SUM(I346:I346)","v":0},null,0]
[328,"Dispensador de jabón líquido 3","- Elaborado en acero inoxidable\n- Con válvula manual anticorrosiva.\n- Uso habilitado para cualquier jabón líquido con capacidad mínima de 800 cc\n- Con cerradura y llave\n- Incluye los elementos necesarios para realizar la instalación en pared\n -Incluye el el costo de instalación","Unidad",{"$f":"SUM(I347:I347)","v":0},null,0]
[329,"Dispensador de jabón líquido 4","- Elaborado en acero inoxidable\n- Con sensor para suministro de jabón\n- Uso habilitado para cualquier jabón líquido con capacidad mínima de 800 cc\n- Con cerradura y llave\n- Incluye los elementos necesarios para realizar la instalación en pared\n -Incluye el costo de instalación","Unidad",{"$f":"SUM(I348:I348)","v":0},null,0]
[330,"Dispensador para ambientador"," - Elaborado en plástico ABS blanco\n - Con dispersión programable de líquido ambientador\n - Capacidad mínima de 250 ml\n- Incluye los elementos necesarios para realizar la instalación en pared\n- Incluye aerosol para recarga mensual\n-Incluye el costo de instalación","Unidad",{"$f":"SUM(I349:I349)","v":0},null,0]
[331,"Dispensador goteo por gravedad y recarga","- Elaborado en PVC blanco\n- Goteo programable para desodorizar sanitarios y orinales\n- Incluye manguera plástica de goteo\n- Incluye los elementos necesarios para realizar la instalación en pared\n'- Incluye líquido para recarga mensual con agentes tensoact","Unidad",{"$f":"SUM(I350:I350)","v":0},null,0]
[332,"Dispensador de agua","- Dispensador de agua fría y caliente\n- Sistema de filtración multinivel\n- Uso de gas refrigerante seguro para la capa de ozono\n\n","Unidad",{"$f":"SUM(I351:I351)","v":0},null,0]
[333,"Dispensador de agua con botellón","- Dispensador de agua fría y caliente\n- Uso de gas refrigerante seguro para la capa de ozono\n","Unidad",{"$f":"SUM(I352:I352)","v":0},null,0]
[334,"Greca para tintos 1","- Eléctrica de 110 v\n- Cuerpo elaborada en lámina de acero inoxidable de calibre 24 como mínimo\n- Resistencias elaboradas en cobre\n- Terminales elaboradas en cobre remplazables con soldadura\n- Mínimo dos servicios\n- Con su respectivo filtro y aro\n - Con capacidad para 30 tintos","Unidad",{"$f":"SUM(I353:I353)","v":0},null,0]
[335,"Greca para tintos 2","- Eléctrica de 110 v\n- Cuerpo elaborada en lámina de acero inoxidable de calibre 24 como mínimo, grado alimento\n- Resistencias elaboradas en cobre\n- Terminales elaboradas en cobre remplazables sin soldadura\n- Mínimo 2 servicios\n -Con su respectivo filtro y aro\n- Con capacidad para 60 tintos","Unidad",{"$f":"SUM(I354:I354)","v":0},null,0]
[336,"Greca para tintos 3","- Eléctrica de 110 v\n- Cuerpo elaborada en lámina de acero inoxidable de calibre 24 como mínimo, grado alimento\n- Resistencias elaboradas en cobre\n- Terminales elaboradas en cobre remplazables sin soldadura\n- Mínimo dos servicios\n -Con su respectivo filtro y aro\n - Con capacidad para 120 tintos","Unidad",{"$f":"SUM(I355:I355)","v":0},null,0]
[337,"Horno microondas","- Potencia mínima de 900 w\n- Tamaño mínimo de 30 cm de ancho por 25 cm de alto por 35 cm de profundidad.\n- Con bandera giratoria de cristal templado\n- Con programas automáticos","Unidad",{"$f":"SUM(I356:I356)","v":0},null,0]
[338,"Horno microondas de tipo industrial","- Potencia mínima de 1000 w\n- Tamaño mínimo de 30 cm de ancho por 30 cm de alto por 40 cm de profundidad.\n- Descongelamiento automático\n- Con programas automáticos","Unidad",{"$f":"SUM(I357:I357)","v":0},null,0]
[339,"Estufa 1","- De dos puestos\n- Lámina inoxidable\n- Eléctrica\n- Con perilla para graduar mínimo 3 niveles de calor","Unidad",{"$f":"SUM(I358:I358)","v":0},null,0]
[340,"Estufa 2"," - de dos puestos\n- Lámina inoxidable\n- A gas\n- Con perilla y quemador para graduar la llama\n- Con parrilla","Unidad",{"$f":"SUM(I359:I359)","v":0},null,0]
[341,"Extensión eléctrica 1","- De mínimo 25 metros de longitud \n- Tipo industrial\n- Recubierta en plástico PVC\n- Con clavijas","Unidad",{"$f":"SUM(I360:I360)","v":0},null,0]
[342,"Extensión eléctrica 2","- De mínimo 30 metros de longitud\n- Recubierta en plástico PVC\n- Con clavijas\n- Tipo industrial","Unidad",{"$f":"SUM(I361:I361)","v":0},null,0]
[343,"Aspiradora 1","- De uso industrial para aspirado en seco y húmedo\n- Motor con potencia 1200 w y 1400 w\n- Capacidad entre 15 y 20 litros\n- Cable de potencia con longitud mínima de 5m\n- Accesorios mínimos: manguera puntera, 2 tubos para extensión, cepillos para tapizados","Unidad",{"$f":"SUM(I362:I362)","v":0},null,0]
[344,"Aspiradora 2","- De uso industrial para aspirado en seco y húmedo\n- Motor con potencia entre 1200 w y 1400 w\n- Capacidad entre 45 y 55 litros\n- Cable de potencia con longitud mínima de 5m\n- Accesorios mínimos: manguera puntera, 2 tubos para extensión, cepillos para tapizados","Unidad",{"$f":"SUM(I363:I363)","v":0},null,0]
[345,"Lavabrilladora de pisos 1","- De uso industrial\n- Motores con potencia mínima de 1,5 hp y velocidad mínima de 175 rpm.\n- Con manijas dobles\n- Con interruptor de apagado de seguridad\n- Diámetro mínimo de 16\"\n- Cable de potencia con longitud mínima de 8m\n- Accesorios mínimos portapad, cepillo suave y duro\n","Unidad ",{"$f":"SUM(I364:I364)","v":0},null,0]
[346,"Lavabrilladora de pisos 2","- De uso industrial\n- Motores con potencia mínima de 1,5 hp y velocidad mínima de 175 rpm.\n- Con manijas dobles\n- Con interruptor de apagado de seguridad\n- Diámetro mínimo de 20\"\n- Cable de potencia con longitud mínima de 8m\n- Accesorios mínimos portapad, cepillo suave y duro","Unidad",{"$f":"SUM(I365:I365)","v":0},null,0]
[347,"Brilladora de alta revolución","- De uso industrial\n- Motores con potencia mínima de 1,5 hp y velocidad mínima de 1500 rpm.\n- Con manijas dobles\n- Con interruptor de apagado de seguridad\n- Diámetro mínimo de 20\"\n- Cable de potencia con longitud mínima de 8m\n- Accesorios mínimos:portapad","Unidad",{"$f":"SUM(I366:I366)","v":0},null,0]
[348,"Lavadora de alfombras y tapetes 1"," - Motor con potencia de mínimo 1100 w y velocidad mínima de 175 revoluciones por minuto.\n- Capacidad mínima de 5 litros\n- Cable de potencia con longitud mínima de 8m\n- Para lavar en seco o a vapor\n- Diámetro mínimo de 16\"","Unidad",{"$f":"SUM(I367:I367)","v":0},null,0]
[349,"Lavadora de alfombras y tapetes 2","- De inyección y extracción con dos motores, cada uno con una potencia entre 1200 w y 1400 w.\n- Capacidad mínima de 30 litros\n- Cable de potencia con longitud mínima de 8m\n- Diámetro mínimo de 20\"","Unidad",{"$f":"SUM(I368:I368)","v":0},null,0]
[350,"Hidrolavadora"," - Motor eléctrico y potencia de mínimo 2.2 Kw - 1.450 RPM y entre 2.5 HP y 3.5 HP.\n - Presión de salida de agua entre 1500 psi y 1900 psi.\n - Con ruedas","Unidad",{"$f":"SUM(I369:I369)","v":0},null,0]
[351,"Sopladora de hojas"," - Potenciado por motor a gasolina o eléctrico inalámbrico\n - Caudal mínimo de 380 cfm / 645m3/h\n - Autonomía mínima de 30 minutos\n - Intensidad máxima de sonido de 100dB\n - Incluye combustible para su funcionamiento (Máximo 3 galones)","Unidad",{"$f":"SUM(I370:I370)","v":0},null,0]
[352,"Sonda para inodoro","-Sonda de mínimo 3''\n-Cubierta de vinilo para proteger la porcelana.\n- Cable de 1/2\" (12,7 mm) con núcleo interno recubierto por compresión, resistente al retorcimiento.\n-Mangos grandes y de diseño ergonómico.\n-Funcional en inodoros ahorradores de agua\n-Peso entre 1,9 kg y 2,5 kg","Unidad",{"$f":"SUM(I371:I371)","v":0},null,0]
[353,"Girador Manual","-Para destapar desagües entre 1/2\" a 1 1/2\".\n-Collar antideslizante que agarra y suelta el cable\n-Cable de núcleo hueco de mpinimo 5/16\" × 25 pies (7,6 m) con barrena de cabeza de bulbo.\n-Tambor rotativo de plástico moldeado\n-Diseño de tambor abierto que permite el acceso al cable","Unidad",{"$f":"SUM(I372:I372)","v":0},null,0]
[354,"Sonda para fregaderos","Sonda Eléctrica para desagües de 3/4” (20 mm) a 2-1/2” (64 mm)\n-El equipo propulsor de velocidad variable gira el cable a 0-600 RPM.\n-Capacidad del tambor: 50 pies (15 m) de 5⁄16\" (8 mm) o 35 pies (11 m) de 3⁄8\" (10 mm).\n-El núcleo interior revestido de vinilo impide que se oxide por contacto con el resorte.","Unidad",{"$f":"SUM(I373:I373)","v":0},null,0]
[355,"Compresores de pintura con pistola","-Con potencia desde 93W a  1500W\n-Tanque de aire con capacidad desde 0,3 L hasta 24 L.\n-Reparto de aire a velocidades desde 10,5 Litros/Minuto a 220 Litros/Minuto.\n-Presión máxima de 0,4 a 8 Bares.\n-ideales para: automoción, bellas artes, bronceado, ilustración, manualidades, restauración de muebles, bodypaint, modelismo, pinta-caras, maquillaje y uñas repostería, tatuaje temporal, textil.","Unidad",{"$f":"SUM(I374:I374)","v":0},null,0]
[356,"Cortadora de baldosa","-Motor monofásico\n-Incluido Disco de Diamante de 180mm con protector termico de seguridad\n-Refrigeración del disco por inmersión\n-Cable eléctrico de mínimo 1.5 m\n-Tope lateral para cortes repetitivos\n-Guia para cortes con regulación de 0º a 90º\n-Plataforma abatibl para ingletes\n - Con potencia promedio de 600 W","Unidad",{"$f":"SUM(I375:I375)","v":0},null,0]
[357,"Cortadora de cesped ","-Cuenta con una cuchilla de 32 a 38 cm.\n-Chasis de acero con recolector o salida lateral.\n-Ruedas de 135 mm\n-Con  potencia entre 5 hp a 25 hp\n-Ancho de corte de 18 a 183 cm.\n-Peso entre 10 kg y 13,5 kg\n-Tiene manilla de seguridad\n-Incluye combustible para su funcionamiento (Máximo 3 galones)","Unidad",{"$f":"SUM(I376:I376)","v":0},null,0]
[358,"Pulidoras","-Con potencia desde 120W a 3000W\n-Velocidad desde 3.200 rpm a 11.000 rpm\n-Equipos de peso liviano.\n-Equipos con baja vibración\n-Con mango lateral.","Unidad",{"$f":"SUM(I377:I377)","v":0},null,0]
[359,"Guadañas"," -Guadaña de Eje Rígido\n - Viene cilindrada con apróximadamente 30 a 51,6 cm3.\n-Peso promedio entre 6,5 Kg y 7,7 Kg.\n-Cuchilla de 80 puntas\n-Capacidad del tanque de combustible entre 0,65 Lt y 1 Lt.\n-Cuenta con un sistema de arranque manual.\n-Cuenta con un sistema de ignición electrónico\n - Incluye el combustible para su funcioamiento (Máximo 3 galones)","Unidad",{"$f":"SUM(I378:I378)","v":0},null,0]
[360,"Motobombas","-Motobomba eléctrica\n-Fabricada en Hierro\n-Cuenta con una potencia de 2 hp a 111 hp\n-Velocidades desde 1800 RPM a 3450 RPM.\n-Peso promedio de 30 Kg.\n-Las medidas de succión por descarga van de 2 x 2 pulgadas a 12 x 12 pulgadas.","Unidad",{"$f":"SUM(I379:I379)","v":0},null,0]
[]
["Precio total elementos, equipos y maquinaria por mes",null,null,null,null,null,{"$f":"SUM(G254:G379)","v":0}]
[]
["TOTAL Mensual Bienes de Aseo y Cafetería ",null,null,null,null,null,{"$f":"$G$249+$G$381","v":0}]

{"sheet":"Detalle Especificaciones","index":2,"n_rows":146,"n_cols":7,"rows_kept":146,"cut":false,"hidden":false,"merged":[[75,6,75,7],[100,6,100,7],[140,5,145,7],[139,5,139,7],[72,0,75,0],[72,1,72,3],[72,6,72,7],[62,6,62,7],[63,1,63,3],[63,6,63,7],[64,1,64,3],[64,6,64,7],[68,0,69,0],[69,1,69,3],[65,1,65,3],[65,6,65,7],[66,1,66,3],[65,0,67,0],[62,0,64,0],[62,1,62,3],[73,1,73,3],[73,6,73,7],[74,1,74,3],[74,6,74,7],[75,1,75,3],[88,1,88,3],[69,6,69,7],[66,6,66,7],[89,0,90,0],[89,1,89,3],[89,6,89,7],[90,1,90,3],[97,0,100,0],[97,1,97,3],[97,6,97,7],[98,1,98,3],[98,6,98,7],[94,1,94,3],[94,6,94,7],[95,1,95,3],[95,6,95,7],[96,1,96,3],[96,6,96,7],[90,6,90,7],[93,0,93,7],[94,0,96,0],[91,1,91,3],[91,6,91,7],[100,1,100,3],[118,0,119,7],[123,0,123,1],[123,5,125,7],[125,0,125,1],[106,0,107,0],[106,1,106,3],[107,1,107,3],[107,6,107,7],[81,0,81,7],[82,1,82,3],[82,6,82,7],[83,0,84,0],[86,6,86,7],[87,1,87,3],[87,6,87,7],[83,1,83,3],[83,6,83,7],[84,1,84,3],[84,6,84,7],[85,1,85,3],[85,6,85,7],[86,0,88,0],[86,1,86,3],[88,6,88,7],[80,6,80,7],[126,0,126,1],[128,0,128,1],[128,3,128,4],[131,0,131,1],[128,5,128,7],[129,0,129,1],[129,3,129,4],[129,5,136,7],[130,0,130,1],[130,3,130,4],[136,0,136,1],[108,0,109,0],[124,0,124,1],[108,1,108,3],[108,6,108,7],[109,1,109,3],[109,6,109,7],[111,0,112,7],[106,6,106,7],[122,0,122,1],[135,0,135,1],[122,5,122,7],[113,0,116,7],[58,1,58,3],[58,6,58,7],[59,1,59,3],[101,0,105,0],[101,1,101,3],[104,1,104,3],[104,6,104,7],[105,1,105,3],[76,0,78,0],[76,1,76,3],[76,6,76,7],[77,1,77,3],[77,6,77,7],[78,1,78,3],[78,6,78,7],[102,6,102,7],[103,1,103,3],[103,6,103,7],[101,6,101,7],[102,1,102,3],[105,6,105,7],[99,1,99,3],[99,6,99,7],[80,0,80,3],[14,4,14,5],[67,1,67,3],[67,6,67,7],[68,1,68,3],[68,6,68,7],[59,6,59,7],[60,0,61,0],[60,1,60,3],[60,6,60,7],[61,1,61,3],[61,6,61,7],[45,6,45,7],[38,0,57,0],[38,1,38,3],[38,6,38,7],[46,6,46,7],[46,1,46,3],[56,6,56,7],[50,6,50,7],[51,1,51,3],[51,6,51,7],[37,6,37,7],[27,0,27,1],[26,0,26,1],[1,0,1,7],[21,0,21,1],[21,4,21,7],[18,0,18,1],[18,4,18,7],[19,0,19,1],[19,4,19,7],[20,0,20,1],[20,4,20,7],[3,0,4,7],[6,0,6,1],[6,2,6,7],[7,0,7,1],[15,0,15,2],[15,4,15,5],[15,6,15,7],[8,0,8,1],[8,2,8,3],[8,4,8,5],[14,6,14,7],[8,6,8,7],[7,2,7,5],[10,0,11,7],[14,0,14,2],[16,0,16,2],[16,4,16,5],[16,6,16,7],[22,0,22,1],[22,4,22,7],[23,0,23,1],[23,4,23,7],[42,6,42,7],[43,1,43,3],[43,6,43,7],[24,0,24,1],[24,4,24,7],[25,0,25,1],[25,4,25,7],[37,0,37,3],[28,4,28,7],[29,0,29,1],[29,4,29,7],[41,1,41,3],[41,6,41,7],[42,1,42,3],[26,4,26,7],[31,0,32,7],[35,0,35,1],[45,1,45,3],[44,1,44,3],[44,6,44,7],[71,0,71,3],[71,6,71,7],[47,1,47,3],[47,6,47,7],[48,1,48,3],[48,6,48,7],[55,1,55,3],[55,6,55,7],[56,1,56,3],[57,1,57,3],[57,6,57,7],[52,1,52,3],[52,6,52,7],[53,1,53,3],[53,6,53,7],[54,1,54,3],[54,6,54,7],[49,1,49,3],[49,6,49,7],[50,1,50,3],[58,0,59,0],[35,2,35,3],[27,4,27,7],[28,0,28,1],[39,1,39,3],[39,6,39,7],[40,1,40,3],[40,6,40,7],[145,0,145,1],[131,3,131,4],[134,3,134,4],[135,3,135,4],[136,3,136,4],[139,0,139,1],[137,0,137,1],[132,0,132,1],[132,3,132,4],[133,0,133,1],[133,3,133,4],[134,0,134,1],[143,0,143,1],[144,0,144,1],[140,0,140,1],[141,0,141,1],[142,0,142,1]]}
[]
["Especificaciones del servicio - Sede 1"]
[]
["Información básica"]
[]
[]
["Nombre de la Sede"]
["Dirección",null,null,null,null,null,"Telefono"]
["Departamento",null,null,null,"Municipio"]
[]
["Información de las instalaciones de la sede"]
[]
[]
[]
["Tipo de instalación:",null,null,null,"Si seleccionó otro, indique cuál:"]
["N° de pisos:",null,null,null,"Área total aproximada en m2:"]
["N° de personas trabajando en las intalaciones:",null,null,null,"N° estimado de visitantes por día:"]
[]
["Tipo de área ",null,"Cantidad","Área total estimada en m2","Observaciones"]
["Ascensores"]
["Auditorios"]
["Baños"]
["Oficinas (N° de cubículos)"]
["Parqueadero/sótano"]
["Salones comunes"]
["Terrazas"]
["Zonas comunes"]
["Zonas de cafetería"]
["Zonas verdes"]
["Otro:"]
[]
["Actividades a desarrollar"]
[]
[]
[]
["Tipo de servicio requerido en la sede:"]
[]
["Actividades de servicio de aseo",null,null,null,"Marque con una X","Frecuencia","Observaciones"]
["Áreas Comunes ","Limpieza de pasillos, salas de reunión, áreas de archivo y almacenaje, bibliotecas, bodegas y otras áreas comunes solicitadas por la Entidad Compradora. "]
[null,"Limpieza, aspirado, brillo y cuidado de sillas, muebles, poltronas y mesas. "]
[null,"Limpieza de persianas, cortinas, cortinas tipo blackout, acrílicos, techos y rejillas de ventilación."]
[null,"Limpieza de ventanas y vidrios interiores de oficinas, módulos, salas de reunión, zonas comunes y puertas,."]
[null,"Limpieza de paredes, barandas, escaleras, muros y divisiones modulares."]
[null,"Limpieza de cuadros, elementos decorativos, lámparas de escritorios, lámparas fluorescentes, marcos, enchufes e interruptores."]
[null,"Limpieza y brillo de placas, ceniceros, letreros, plantas interiores, elementos decorativos que lo requieran, lámparas colgantes y otras lámparas que lo requieran."]
[null,"Limpieza, aspirado, desmanchado y brillo de ascensores"]
[null,"Lavado de limpiones y paños. Lavado ocasional de manteles, servilletas y banderas en máquina lavadora."]
[null,"Limpieza y vaciado de contenedores de basuras, canecas, ceniceros y papeleras. Cambio de bolsa plástica. "]
[null,"Limpieza de los implementos, equipos y utensilios empleados para el servicio de cafetería, entre ellos, microondas, neveras, grecas, dispensadores, estufas, así como las instalaciones físicas de las cafeterías. "]
[null,"Apoyo en la limpieza y organización de elementos luego de comidas, reuniones de trabajo o eventos especiales realizados por la Entidad Compradora"]
[null,"Evacuación diaria de desechos de las zonas objeto de la prestación del servicio: Introducción en empaques adecuados y disposición en los lugares destinados para su posterior recolección."]
[null,"Limpieza básica de tanques, fuentes y piletas (máximo 5000 litros). No incluye insumos especializados."]
[null,"Limpieza de parqueaderos, terrazas, sótanos y casetas de seguridad. No debe requerir maquinar adicional a la establecida en el Anexo 4 del pliego de condicioenes."]
[null,"Limpieza y riego las plantas y jardines interiores, y riego de los jardines exteriores aledaños a las instalaciones Entidad Compradora"]
[null,"Eliminación de suciedad acumulada, hongos, maleza, hierbas y tierra entre las hendiduras de baldosas o ladrillos. "]
[null,"Lavado las fachadas y vidrios exteriores de las instalaciones de la Entidad Compradora a una altura menor a 1,5 metros. "]
[null,"Realización de brigadas de aseo."]
[null,"Limpieza de los elementos, equipos y utensilios empleados para el servicio de aseo. "]
["Oficinas","Limpieza de oficinas, divisiones, escritorios, mesas, libros, cuadros, objetos decorativos, sillas, estanterías, repisas, archivadores y cajoneras. "]
[null,"Limpieza exterior de computadores, teléfonos, impresoras, fotocopiadoras, consolas, fax, y demás equipos para uso administrativo con sus componentes que tenga la Entidad Compradora."]
["Pisos y tapizados ","Decapado, limpieza, brillo, sellado y mantenimiento del brillo de pisos, escaleras y estantes. "]
[null,"Limpieza, lavado, aspirado y desmanchado de alfombras, tapetes y tapizados. No incluye despegue de los tapetes o alfombras para lavado especializado. "]
["Baños","Limpieza y desinfección de sanitarios, orinales lavamanos, duchas, griferías, dispensadores, secadores, accesorios, espejos, paredes, puertas y divisiones, pisos y papeleras. Aplicación de ambientadores y productos para el control del mal olor.  "]
[null,"Desatasco de sanitarios, orinales, duchas, sifones y lavamanos. "]
[null,"Abastecimiento de los baños de papel higiénico, toallas de papel, bolsas de basura, jabón de manos y otros elementos requeridos para su uso."]
["Zonas exteriores","Limpieza de patios, aceras, entradas, jardines, antejardines, zonas verdes y zonas exteriores aledañas a las instalaciones de la Entidad Compradora. "]
[null,"Recolección de hojas y limpieza de canalizaciones en caso de obstrucción. "]
[null,"Limpieza y vaciado de contenedores, canecas y ceniceros exteriores. "]
["Buenas prácticas de aseo","Clasificación  y envase de materiales y basuras y puesta a disposición de estos en los lugares de las instalaciones físicas de la Entidad Compradora  indicados para su recolección y posterior reciclaje. "]
[null,"Utilización de las señales de seguridad peatonal o equipos de seguridad industrial para evitar accidentes, de acuerdo a las instrucciones de la Entidad Compradora."]
[]
["Actividades de servicio de cafetería ",null,null,null,"Marque con una X","Frecuencia","Observaciones"]
["Servicio de bebidas y atención de eventos ","Preparación de bebidas calientes y frías según las especificaciones de la Entidad Compradora "]
[null,"Ofrecimiento de bebidas calientes y frías en los horarios indicados por la Entidad Compradora.  Realización de recorridos periódicos para recoger los elementos utilizados para el consumo de productos. "]
[null,"Preparación de termos con café, té, aromática y agua fría y caliente en el lugar y horarios que indique la Entidad Compradora. Lo anterior con la respectiva dotación de té, aromática, azúcar, mezcladores, servilletas, vasos y crema. "]
[null,"Atención a reuniones de trabajo o eventos especiales de la Entidad Compradora. "]
["Limpieza y cuidado ","Limpieza y desinfección del área de cafetería y del menaje, elementos y equipos empleados para la prestación del servicio, entre ellos, microondas, neveras, grecas, dispensadores, estufas, así como las instalaciones físicas de las cafeterías. "]
[null,"Abastecimiento del área de cafetería de los insumos requeridos para la prestación del servicio de cafetería. "]
[null,"Realización del inventario y cuidado del menaje, elementos y equipos empleados en la prestación del servicio. Cuidado de las instalaciones físicas de las cafeterías dispuestas para la prestación del servicio. "]
[]
["Actividades de mantenimiento locativo básico",null,null,null,"Marque con una X","Frecuencia","Observaciones"]
["Mantenimiento preventivo"]
["Plomería","Inspección de tuberías, sanitarios, orinales, lavaplatos, duchas, sifones, canalizaciones, cunetas, cañerías, piletas y fuentes para verificar su buen funcionamiento. Aviso al supervisor del contrato sobre cualquier falla o anomalía."]
["Mantenimiento eléctrico ","Limpieza de luminarias, lámparas, reflectores, balastos, transformadores (externa), fusibles, tubos de descarga, cebadores (starter), casquillos, bombillos, interruptores automáticos (breakers), tomas de corriente, extensiones y cableado eléctrico."]
[null,"Revisión externa de transformadores, cableado e instalaciones eléctricas. Aviso al supervisor del contrato sobre cualquier falla o anomalía."]
["Reparaciones locativas menores.","Inspección de cortinas, cortinas tipo blackout, persianas, tapetes, marcos, puertas, casilleros, vidrios, ventanas, estanterías, repisas, mesas, muebles de oficina, cerraduras, chapas, bisagras, manijas y fallebas para verificar su buen funcionamiento. Aviso al supervisor del contrato sobre cualquier falla o anomalía."]
["Mantenimiento de elementos y equipos ","Inspección de secadores de manos y dispensadores de jabón, líquido antibacterial, papel higiénico, toallas de papel, ambientador y desodorizador de sanitarios para verificar su buen funcionamiento. Aviso al supervisor del contrato sobre cualquier falla o anomalía. "]
[null,"Inspección de estufas, grecas y purificadores de agua para verificar su buen funcionamiento. Aviso al supervisor del contrato sobre cualquier falla o anomalía. "]
[null,"Limpieza interna y extena de los elementos y equipos anteriores. Lubricación de sus partes mecánicas, cambio de filtros, escobillas y resistencias cuando sea necesario y revisión de las conexiones eléctricas. "]
["Limpieza en lugares de difícil acceso","Inspección y limpieza de ventanas,  persianas, cortinas, cortinas tipo balckout, acrílicos, techos, rejillas, canales de ventilación y otros lugares de difícil acceso. Aviso al supervisor del contrato sobre cualquier falla o anomalía. "]
[null,"Limpieza de la fachada de la Entidad Compradora siempre que el operario no implique trabajo en alturas.  "]
["General","Apoyo en las brigadas de mantenimiento que programe la Entidad Compradora. Las actividades ejecutadas por los operarios auxiliar y de mantenimiento deben incluir únicamente las establecidas en este Anexo. "]
[]
["Mantenimiento correctivo "]
["Plomería ","Reparación de fugas menores en tuberías, sanitarios, orinales, lavamanos, lavaplatos, duchas, piletas y fuentes."]
[null,"Reemplazo de piezas dañadas de tuberías, sanitarios, orinales, lavamanos, lavaplatos y duchas."]
[null,"Reparación de taponamientos en tuberías, sanitarios, orinales, lavaplatos, duchas, sifones, canalizaciones, cunetas, cañerías, piletas y fuentes.  "]
["Mantenimiento eléctrico ","Instalación, reparación, reemplazo y limpieza de luminarias, lámparas, reflectores, balastos, tubos de descarga, cebadores (starter), casquillos, bombillos, interruptores automáticos (breakers), tomas de corriente y fusibles. Reemplazo de insumos y repuestos requeridos para todo lo anterior. "]
[null,"Reparación de cortos menores. "]
[null,"Instalación y traslado de salidas eléctricas. "]
[null,"Reparación de la señal de televisión por daños menores."]
["Reparaciones locativas menores ","Reparaciones menores de resane, enchape y pintura de parades, pisos y techos interiores de las instalaciones."]
[null,"Ajuste y desmonte de marcos, puertas, vidrios y ventanas."]
[null,"Instalación o reparaciones de persianas, cortinas, cortinas tipo blackout y tapetes. "]
[null,"Instalación o reparaciones de repisas, estanterías, casilleros, sillas, mesas y otros muebles de oficina. "]
[null,"Instalación o reparaciones de cerraduras, chapas, manijas, bisagras y fallebas de puertas, escritorios, archivadores, casilleros y similares. Cambio de todo tipo de guardas y cerraduras si es requerido."]
["Mantenimiento de elementos y equipos ","Instalación o reemplazo de secadores de manos y dispensadores de jabón, líquido antibacterial, papel higiénico, toallas de papel, ambientador y desodorizador de sanitarios. Reemplazo de insumos y repuestos requeridos para todo lo anterior. "]
[null,"Instalación, reparación o reemplazo de grecas, estufas y purificadores de agua. Reemplazo de sus insumos y repuestos. "]
["Traslado de materiales y adecuación de espacios","Traslado de muebles, instalación, reparación y adecuación de páneles y módulos de oficina (puestos de trabajo)."]
[null,"Habilitar bodegas, lugares de archivo, salas de reunión, auditorios y salones comunes según lo requiera la Entidad Compradora."]
[]
["Describa los elementos, equipos y maquinaria que requiere la sede de la Entidad Compradora para las actividades de mantenimiento básico locativo, de acuerdo con lo establecido en el Acuerdo Marco de Precios"]
[]
[]
[]
[]
[]
[]
["Servicios Especiales"]
[]
[]
[]
["Fumigación",null,"Marque con una X","M2 de área interior","M2 de área exterior","Detalles y observaciones"]
["Roedores"]
["Insectos rastreros y voladores"]
["Desinfección ambiental"]
[]
[]
["Jardinería ",null,"Marque con una X","Equipos o materiales",null,"Detalles y observaciones"]
["Poda de prado, bordes, cercas vivas y plantas (no incluye trabajo en alturas). "]
["Aplicación de fertilizantes de uso común (la tarifa debe incluir un estimado 500 gramos de fertilizante al año por metro cuadrado). "]
["Remoción de tierra para oxigenación. "]
["Trasplante y reemplazo de plantas. (No incluye trasplante de árboles, ni arbustos con una altura superior a un metro, no incluye suministro de plantas)"]
["Traslado, mantenimiento y limpieza de macetas, jardineras y soportes. Descarte de agua de los recipientes recibidores.  "]
["Revisión de humedad y riego de plantas, prados y árboles."]
["Aplicación de plaguicidas y funguicidas de uso común."]
["Empaque y traslado de desechos producto de la prestación del servicio hasta los lugares de recolección. "]
[]
[]
["Trabajo en alturas nivel avanzado",null,"Marque con una X","Unidad","Cantidad","Detalles y observaciones"]
["Lavado, limpieza y desinfección de tanques ",null,null,"m2"]
["Limpieza de cristales",null,null,"numero de pisos"]
["Limpieza de cortinas",null,null,"numero de cortinas"]
["Reparación de cortinas",null,null,"numero de cortinas"]
["Instalación de cortinas",null,null,"numero de cortinas"]
["Limpieza y mantenimiento de fachada",null,null,"numero de pisos"]

{"sheet":"Observaciones Proveedores ","index":3,"n_rows":47,"n_cols":10,"rows_kept":47,"cut":false,"hidden":false,"merged":[[0,0,3,9],[29,0,29,7],[30,0,30,1],[30,3,30,7],[31,0,31,1],[31,3,31,7],[28,9,29,9],[21,0,21,7],[21,9,22,9],[22,0,22,7],[23,0,23,1],[23,3,23,7],[24,0,24,1],[24,3,24,7],[14,16363,14,16367],[14,16248,14,16249],[14,16251,14,16255],[14,16256,14,16257],[14,16259,14,16263],[14,16264,14,16265],[14,16219,14,16223],[14,16224,14,16225],[14,16227,14,16231],[14,16232,14,16233],[14,16235,14,16239],[14,16240,14,16241],[14,16195,14,16199],[14,16200,14,16201],[14,16203,14,16207],[14,16208,14,16209],[14,16211,14,16215],[14,16216,14,16217],[14,16368,14,16369],[14,16371,14,16375],[14,16376,14,16377],[14,16379,14,16383],[12,0,12,7],[13,3,13,7],[11,9,12,9],[14,16339,14,16343],[14,16344,14,16345],[14,16347,14,16351],[14,16352,14,16353],[14,16355,14,16359],[14,16360,14,16361],[14,16315,14,16319],[14,16320,14,16321],[14,16323,14,16327],[14,16328,14,16329],[14,16331,14,16335],[14,16336,14,16337],[14,16291,14,16295],[14,16296,14,16297],[14,16299,14,16303],[14,16304,14,16305],[14,16307,14,16311],[14,16312,14,16313],[14,16267,14,16271],[14,16272,14,16273],[14,16275,14,16279],[14,16280,14,16281],[14,16283,14,16287],[14,16288,14,16289],[14,16243,14,16247],[14,16171,14,16175],[14,16176,14,16177],[14,16179,14,16183],[14,16184,14,16185],[14,16187,14,16191],[14,16192,14,16193],[14,16147,14,16151],[14,16152,14,16153],[14,16155,14,16159],[14,16160,14,16161],[14,16163,14,16167],[14,16168,14,16169],[14,16123,14,16127],[14,16128,14,16129],[14,16131,14,16135],[14,16136,14,16137],[14,16139,14,16143],[14,16144,14,16145],[14,16099,14,16103],[14,16104,14,16105],[14,16107,14,16111],[14,16112,14,16113],[14,16115,14,16119],[14,16120,14,16121],[14,16075,14,16079],[14,16080,14,16081],[14,16083,14,16087],[14,16088,14,16089],[14,16091,14,16095],[14,16096,14,16097],[14,16051,14,16055],[14,16056,14,16057],[14,16059,14,16063],[14,16064,14,16065],[14,16067,14,16071],[14,16072,14,16073],[14,16027,14,16031],[14,16032,14,16033],[14,16035,14,16039],[14,16040,14,16041],[14,16043,14,16047],[14,16048,14,16049],[14,16003,14,16007],[14,16008,14,16009],[14,16011,14,16015],[14,16016,14,16017],[14,16019,14,16023],[14,16024,14,16025],[14,15979,14,15983],[14,15984,14,15985],[14,15987,14,15991],[14,15992,14,15993],[14,15995,14,15999],[14,16000,14,16001],[14,15955,14,15959],[14,15960,14,15961],[14,15963,14,15967],[14,15968,14,15969],[14,15971,14,15975],[14,15976,14,15977],[14,15931,14,15935],[14,15936,14,15937],[14,15939,14,15943],[14,15944,14,15945],[14,15947,14,15951],[14,15952,14,15953],[14,15907,14,15911],[14,15912,14,15913],[14,15915,14,15919],[14,15920,14,15921],[14,15923,14,15927],[14,15928,14,15929],[14,15883,14,15887],[14,15888,14,15889],[14,15891,14,15895],[14,15896,14,15897],[14,15899,14,15903],[14,15904,14,15905],[14,15859,14,15863],[14,15864,14,15865],[14,15867,14,15871],[14,15872,14,15873],[14,15875,14,15879],[14,15880,14,15881],[14,15835,14,15839],[14,15840,14,15841],[14,15843,14,15847],[14,15848,14,15849],[14,15851,14,15855],[14,15856,14,15857],[14,15811,14,15815],[14,15816,14,15817],[14,15819,14,15823],[14,15824,14,15825],[14,15827,14,15831],[14,15832,14,15833],[14,15787,14,15791],[14,15792,14,15793],[14,15795,14,15799],[14,15800,14,15801],[14,15803,14,15807],[14,15808,14,15809],[14,15763,14,15767],[14,15768,14,15769],[14,15771,14,15775],[14,15776,14,15777],[14,15779,14,15783],[14,15784,14,15785],[14,15739,14,15743],[14,15744,14,15745],[14,15747,14,15751],[14,15752,14,15753],[14,15755,14,15759],[14,15760,14,15761],[14,15715,14,15719],[14,15720,14,15721],[14,15723,14,15727],[14,15728,14,15729],[14,15731,14,15735],[14,15736,14,15737],[14,15691,14,15695],[14,15696,14,15697],[14,15699,14,15703],[14,15704,14,15705],[14,15707,14,15711],[14,15712,14,15713],[14,15667,14,15671],[14,15672,14,15673],[14,15675,14,15679],[14,15680,14,15681],[14,15683,14,15687],[14,15688,14,15689],[14,15643,14,15647],[14,15648,14,15649],[14,15651,14,15655],[14,15656,14,15657],[14,15659,14,15663],[14,15664,14,15665],[14,15619,14,15623],[14,15624,14,15625],[14,15627,14,15631],[14,15632,14,15633],[14,15635,14,15639],[14,15640,14,15641],[14,15595,14,15599],[14,15600,14,15601],[14,15603,14,15607],[14,15608,14,15609],[14,15611,14,15615],[14,15616,14,15617],[14,15571,14,15575],[14,15576,14,15577],[14,15579,14,15583],[14,15584,14,15585],[14,15587,14,15591],[14,15592,14,15593],[14,15547,14,15551],[14,15552,14,15553],[14,15555,14,15559],[14,15560,14,15561],[14,15563,14,15567],[14,15568,14,15569],[14,15523,14,15527],[14,15528,14,15529],[14,15531,14,15535],[14,15536,14,15537],[14,15539,14,15543],[14,15544,14,15545],[14,15499,14,15503],[14,15504,14,15505],[14,15507,14,15511],[14,15512,14,15513],[14,15515,14,15519],[14,15520,14,15521],[14,15475,14,15479],[14,15480,14,15481],[14,15483,14,15487],[14,15488,14,15489],[14,15491,14,15495],[14,15496,14,15497],[14,15451,14,15455],[14,15456,14,15457],[14,15459,14,15463],[14,15464,14,15465],[14,15467,14,15471],[14,15472,14,15473],[14,15427,14,15431],[14,15432,14,15433],[14,15435,14,15439],[14,15440,14,15441],[14,15443,14,15447],[14,15448,14,15449],[14,15403,14,15407],[14,15408,14,15409],[14,15411,14,15415],[14,15416,14,15417],[14,15419,14,15423],[14,15424,14,15425],[14,15379,14,15383],[14,15384,14,15385],[14,15387,14,15391],[14,15392,14,15393],[14,15395,14,15399],[14,15400,14,15401],[14,15355,14,15359],[14,15360,14,15361],[14,15363,14,15367],[14,15368,14,15369],[14,15371,14,15375],[14,15376,14,15377],[14,15331,14,15335],[14,15336,14,15337],[14,15339,14,15343],[14,15344,14,15345],[14,15347,14,15351],[14,15352,14,15353],[14,15307,14,15311],[14,15312,14,15313],[14,15315,14,15319],[14,15320,14,15321],[14,15323,14,15327],[14,15328,14,15329],[14,15283,14,15287],[14,15288,14,15289],[14,15291,14,15295],[14,15296,14,15297],[14,15299,14,15303],[14,15304,14,15305],[14,15259,14,15263],[14,15264,14,15265],[14,15267,14,15271],[14,15272,14,15273],[14,15275,14,15279],[14,15280,14,15281],[14,15235,14,15239],[14,15240,14,15241],[14,15243,14,15247],[14,15248,14,15249],[14,15251,14,15255],[14,15256,14,15257],[14,15211,14,15215],[14,15216,14,15217],[14,15219,14,15223],[14,15224,14,15225],[14,15227,14,15231],[14,15232,14,15233],[14,15187,14,15191],[14,15192,14,15193],[14,15195,14,15199],[14,15200,14,15201],[14,15203,14,15207],[14,15208,14,15209],[14,15163,14,15167],[14,15168,14,15169],[14,15171,14,15175],[14,15176,14,15177],[14,15179,14,15183],[14,15184,14,15185],[14,15139,14,15143],[14,15144,14,15145],[14,15147,14,15151],[14,15152,14,15153],[14,15155,14,15159],[14,15160,14,15161],[14,15115,14,15119],[14,15120,14,15121],[14,15123,14,15127],[14,15128,14,15129],[14,15131,14,15135],[14,15136,14,15137],[14,15091,14,15095],[14,15096,14,15097],[14,15099,14,15103],[14,15104,14,15105],[14,15107,14,15111],[14,15112,14,15113],[14,15067,14,15071],[14,15072,14,15073],[14,15075,14,15079],[14,15080,14,15081],[14,15083,14,15087],[14,15088,14,15089],[14,15043,14,15047],[14,15048,14,15049],[14,15051,14,15055],[14,15056,14,15057],[14,15059,14,15063],[14,15064,14,15065],[14,15019,14,15023],[14,15024,14,15025],[14,15027,14,15031],[14,15032,14,15033],[14,15035,14,15039],[14,15040,14,15041],[14,14995,14,14999],[14,15000,14,15001],[14,15003,14,15007],[14,15008,14,15009],[14,15011,14,15015],[14,15016,14,15017],[14,14971,14,14975],[14,14976,14,14977],[14,14979,14,14983],[14,14984,14,14985],[14,14987,14,14991],[14,14992,14,14993],[14,14947,14,14951],[14,14952,14,14953],[14,14955,14,14959],[14,14960,14,14961],[14,14963,14,14967],[14,14968,14,14969],[14,14923,14,14927],[14,14928,14,14929],[14,14931,14,14935],[14,14936,14,14937],[14,14939,14,14943],[14,14944,14,14945],[14,14899,14,14903],[14,14904,14,14905],[14,14907,14,14911],[14,14912,14,14913],[14,14915,14,14919],[14,14920,14,14921],[14,14875,14,14879],[14,14880,14,14881],[14,14883,14,14887],[14,14888,14,14889],[14,14891,14,14895],[14,14896,14,14897],[14,14851,14,14855],[14,14856,14,14857],[14,14859,14,14863],[14,14864,14,14865],[14,14867,14,14871],[14,14872,14,14873],[14,14827,14,14831],[14,14832,14,14833],[14,14835,14,14839],[14,14840,14,14841],[14,14843,14,14847],[14,14848,14,14849],[14,14803,14,14807],[14,14808,14,14809],[14,14811,14,14815],[14,14816,14,14817],[14,14819,14,14823],[14,14824,14,14825],[14,14779,14,14783],[14,14784,14,14785],[14,14787,14,14791],[14,14792,14,14793],[14,14795,14,14799],[14,14800,14,14801],[14,14755,14,14759],[14,14760,14,14761],[14,14763,14,14767],[14,14768,14,14769],[14,14771,14,14775],[14,14776,14,14777],[14,14731,14,14735],[14,14736,14,14737],[14,14739,14,14743],[14,14744,14,14745],[14,14747,14,14751],[14,14752,14,14753],[14,14707,14,14711],[14,14712,14,14713],[14,14715,14,14719],[14,14720,14,14721],[14,14723,14,14727],[14,14728,14,14729],[14,14683,14,14687],[14,14688,14,14689],[14,14691,14,14695],[14,14696,14,14697],[14,14699,14,14703],[14,14704,14,14705],[14,14659,14,14663],[14,14664,14,14665],[14,14667,14,14671],[14,14672,14,14673],[14,14675,14,14679],[14,14680,14,14681],[14,14635,14,14639],[14,14640,14,14641],[14,14643,14,14647],[14,14648,14,14649],[14,14651,14,14655],[14,14656,14,14657],[14,14611,14,14615],[14,14616,14,14617],[14,14619,14,14623],[14,14624,14,14625],[14,14627,14,14631],[14,14632,14,14633],[14,14587,14,14591],[14,14592,14,14593],[14,14595,14,14599],[14,14600,14,14601],[14,14603,14,14607],[14,14608,14,14609],[14,14563,14,14567],[14,14568,14,14569],[14,14571,14,14575],[14,14576,14,14577],[14,14579,14,14583],[14,14584,14,14585],[14,14539,14,14543],[14,14544,14,14545],[14,14547,14,14551],[14,14552,14,14553],[14,14555,14,14559],[14,14560,14,14561],[14,14515,14,14519],[14,14520,14,14521],[14,14523,14,14527],[14,14528,14,14529],[14,14531,14,14535],[14,14536,14,14537],[14,14491,14,14495],[14,14496,14,14497],[14,14499,14,14503],[14,14504,14,14505],[14,14507,14,14511],[14,14512,14,14513],[14,14467,14,14471],[14,14472,14,14473],[14,14475,14,14479],[14,14480,14,14481],[14,14483,14,14487],[14,14488,14,14489],[14,14443,14,14447],[14,14448,14,14449],[14,14451,14,14455],[14,14456,14,14457],[14,14459,14,14463],[14,14464,14,14465],[14,14419,14,14423],[14,14424,14,14425],[14,14427,14,14431],[14,14432,14,14433],[14,14435,14,14439],[14,14440,14,14441],[14,14395,14,14399],[14,14400,14,14401],[14,14403,14,14407],[14,14408,14,14409],[14,14411,14,14415],[14,14416,14,14417],[14,14371,14,14375],[14,14376,14,14377],[14,14379,14,14383],[14,14384,14,14385],[14,14387,14,14391],[14,14392,14,14393],[14,14347,14,14351],[14,14352,14,14353],[14,14355,14,14359],[14,14360,14,14361],[14,14363,14,14367],[14,14368,14,14369],[14,14323,14,14327],[14,14328,14,14329],[14,14331,14,14335],[14,14336,14,14337],[14,14339,14,14343],[14,14344,14,14345],[14,14299,14,14303],[14,14304,14,14305],[14,14307,14,14311],[14,14312,14,14313],[14,14315,14,14319],[14,14320,14,14321],[14,14275,14,14279],[14,14280,14,14281],[14,14283,14,14287],[14,14288,14,14289],[14,14291,14,14295],[14,14296,14,14297],[14,14251,14,14255],[14,14256,14,14257],[14,14259,14,14263],[14,14264,14,14265],[14,14267,14,14271],[14,14272,14,14273],[14,14227,14,14231],[14,14232,14,14233],[14,14235,14,14239],[14,14240,14,14241],[14,14243,14,14247],[14,14248,14,14249],[14,14203,14,14207],[14,14208,14,14209],[14,14211,14,14215],[14,14216,14,14217],[14,14219,14,14223],[14,14224,14,14225],[14,14179,14,14183],[14,14184,14,14185],[14,14187,14,14191],[14,14192,14,14193],[14,14195,14,14199],[14,14200,14,14201],[14,14155,14,14159],[14,14160,14,14161],[14,14163,14,14167],[14,14168,14,14169],[14,14171,14,14175],[14,14176,14,14177],[14,14131,14,14135],[14,14136,14,14137],[14,14139,14,14143],[14,14144,14,14145],[14,14147,14,14151],[14,14152,14,14153],[14,14107,14,14111],[14,14112,14,14113],[14,14115,14,14119],[14,14120,14,14121],[14,14123,14,14127],[14,14128,14,14129],[14,14083,14,14087],[14,14088,14,14089],[14,14091,14,14095],[14,14096,14,14097],[14,14099,14,14103],[14,14104,14,14105],[14,14059,14,14063],[14,14064,14,14065],[14,14067,14,14071],[14,14072,14,14073],[14,14075,14,14079],[14,14080,14,14081],[14,14035,14,14039],[14,14040,14,14041],[14,14043,14,14047],[14,14048,14,14049],[14,14051,14,14055],[14,14056,14,14057],[14,14011,14,14015],[14,14016,14,14017],[14,14019,14,14023],[14,14024,14,14025],[14,14027,14,14031],[14,14032,14,14033],[14,13987,14,13991],[14,13992,14,13993],[14,13995,14,13999],[14,14000,14,14001],[14,14003,14,14007],[14,14008,14,14009],[14,13963,14,13967],[14,13968,14,13969],[14,13971,14,13975],[14,13976,14,13977],[14,13979,14,13983],[14,13984,14,13985],[14,13939,14,13943],[14,13944,14,13945],[14,13947,14,13951],[14,13952,14,13953],[14,13955,14,13959],[14,13960,14,13961],[14,13915,14,13919],[14,13920,14,13921],[14,13923,14,13927],[14,13928,14,13929],[14,13931,14,13935],[14,13936,14,13937],[14,13891,14,13895],[14,13896,14,13897],[14,13899,14,13903],[14,13904,14,13905],[14,13907,14,13911],[14,13912,14,13913],[14,13867,14,13871],[14,13872,14,13873],[14,13875,14,13879],[14,13880,14,13881],[14,13883,14,13887],[14,13888,14,13889],[14,13843,14,13847],[14,13848,14,13849],[14,13851,14,13855],[14,13856,14,13857],[14,13859,14,13863],[14,13864,14,13865],[14,13819,14,13823],[14,13824,14,13825],[14,13827,14,13831],[14,13832,14,13833],[14,13835,14,13839],[14,13840,14,13841],[14,13795,14,13799],[14,13800,14,13801],[14,13803,14,13807],[14,13808,14,13809],[14,13811,14,13815],[14,13816,14,13817],[14,13771,14,13775],[14,13776,14,13777],[14,13779,14,13783],[14,13784,14,13785],[14,13787,14,13791],[14,13792,14,13793],[14,13747,14,13751],[14,13752,14,13753],[14,13755,14,13759],[14,13760,14,13761],[14,13763,14,13767],[14,13768,14,13769],[14,13723,14,13727],[14,13728,14,13729],[14,13731,14,13735],[14,13736,14,13737],[14,13739,14,13743],[14,13744,14,13745],[14,13699,14,13703],[14,13704,14,13705],[14,13707,14,13711],[14,13712,14,13713],[14,13715,14,13719],[14,13720,14,13721],[14,13675,14,13679],[14,13680,14,13681],[14,13683,14,13687],[14,13688,14,13689],[14,13691,14,13695],[14,13696,14,13697],[14,13651,14,13655],[14,13656,14,13657],[14,13659,14,13663],[14,13664,14,13665],[14,13667,14,13671],[14,13672,14,13673],[14,13627,14,13631],[14,13632,14,13633],[14,13635,14,13639],[14,13640,14,13641],[14,13643,14,13647],[14,13648,14,13649],[14,13603,14,13607],[14,13608,14,13609],[14,13611,14,13615],[14,13616,14,13617],[14,13619,14,13623],[14,13624,14,13625],[14,13579,14,13583],[14,13584,14,13585],[14,13587,14,13591],[14,13592,14,13593],[14,13595,14,13599],[14,13600,14,13601],[14,13555,14,13559],[14,13560,14,13561],[14,13563,14,13567],[14,13568,14,13569],[14,13571,14,13575],[14,13576,14,13577],[14,13531,14,13535],[14,13536,14,13537],[14,13539,14,13543],[14,13544,14,13545],[14,13547,14,13551],[14,13552,14,13553],[14,13507,14,13511],[14,13512,14,13513],[14,13515,14,13519],[14,13520,14,13521],[14,13523,14,13527],[14,13528,14,13529],[14,13483,14,13487],[14,13488,14,13489],[14,13491,14,13495],[14,13496,14,13497],[14,13499,14,13503],[14,13504,14,13505],[14,13459,14,13463],[14,13464,14,13465],[14,13467,14,13471],[14,13472,14,13473],[14,13475,14,13479],[14,13480,14,13481],[14,13435,14,13439],[14,13440,14,13441],[14,13443,14,13447],[14,13448,14,13449],[14,13451,14,13455],[14,13456,14,13457],[14,13411,14,13415],[14,13416,14,13417],[14,13419,14,13423],[14,13424,14,13425],[14,13427,14,13431],[14,13432,14,13433],[14,13387,14,13391],[14,13392,14,13393],[14,13395,14,13399],[14,13400,14,13401],[14,13403,14,13407],[14,13408,14,13409],[14,13363,14,13367],[14,13368,14,13369],[14,13371,14,13375],[14,13376,14,13377],[14,13379,14,13383],[14,13384,14,13385],[14,13339,14,13343],[14,13344,14,13345],[14,13347,14,13351],[14,13352,14,13353],[14,13355,14,13359],[14,13360,14,13361],[14,13315,14,13319],[14,13320,14,13321],[14,13323,14,13327],[14,13328,14,13329],[14,13331,14,13335],[14,13336,14,13337],[14,13291,14,13295],[14,13296,14,13297],[14,13299,14,13303],[14,13304,14,13305],[14,13307,14,13311],[14,13312,14,13313],[14,13267,14,13271],[14,13272,14,13273],[14,13275,14,13279],[14,13280,14,13281],[14,13283,14,13287],[14,13288,14,13289],[14,13243,14,13247],[14,13248,14,13249],[14,13251,14,13255],[14,13256,14,13257],[14,13259,14,13263],[14,13264,14,13265],[14,13219,14,13223],[14,13224,14,13225],[14,13227,14,13231],[14,13232,14,13233],[14,13235,14,13239],[14,13240,14,13241],[14,13195,14,13199],[14,13200,14,13201],[14,13203,14,13207],[14,13208,14,13209],[14,13211,14,13215],[14,13216,14,13217],[14,13171,14,13175],[14,13176,14,13177],[14,13179,14,13183],[14,13184,14,13185],[14,13187,14,13191],[14,13192,14,13193],[14,13147,14,13151],[14,13152,14,13153],[14,13155,14,13159],[14,13160,14,13161],[14,13163,14,13167],[14,13168,14,13169],[14,13123,14,13127],[14,13128,14,13129],[14,13131,14,13135],[14,13136,14,13137],[14,13139,14,13143],[14,13144,14,13145],[14,13099,14,13103],[14,13104,14,13105],[14,13107,14,13111],[14,13112,14,13113],[14,13115,14,13119],[14,13120,14,13121],[14,13075,14,13079],[14,13080,14,13081],[14,13083,14,13087],[14,13088,14,13089],[14,13091,14,13095],[14,13096,14,13097],[14,13051,14,13055],[14,13056,14,13057],[14,13059,14,13063],[14,13064,14,13065],[14,13067,14,13071],[14,13072,14,13073],[14,13027,14,13031],[14,13032,14,13033],[14,13035,14,13039],[14,13040,14,13041],[14,13043,14,13047],[14,13048,14,13049],[14,13003,14,13007],[14,13008,14,13009],[14,13011,14,13015],[14,13016,14,13017],[14,13019,14,13023],[14,13024,14,13025],[14,12979,14,12983],[14,12984,14,12985],[14,12987,14,12991],[14,12992,14,12993],[14,12995,14,12999],[14,13000,14,13001],[14,12955,14,12959],[14,12960,14,12961],[14,12963,14,12967],[14,12968,14,12969],[14,12971,14,12975],[14,12976,14,12977],[14,12931,14,12935],[14,12936,14,12937],[14,12939,14,12943],[14,12944,14,12945],[14,12947,14,12951],[14,12952,14,12953],[14,12907,14,12911],[14,12912,14,12913],[14,12915,14,12919],[14,12920,14,12921],[14,12923,14,12927],[14,12928,14,12929],[14,12883,14,12887],[14,12888,14,12889],[14,12891,14,12895],[14,12896,14,12897],[14,12899,14,12903],[14,12904,14,12905],[14,12859,14,12863],[14,12864,14,12865],[14,12867,14,12871],[14,12872,14,12873],[14,12875,14,12879],[14,12880,14,12881],[14,12835,14,12839],[14,12840,14,12841],[14,12843,14,12847],[14,12848,14,12849],[14,12851,14,12855],[14,12856,14,12857],[14,12811,14,12815],[14,12816,14,12817],[14,12819,14,12823],[14,12824,14,12825],[14,12827,14,12831],[14,12832,14,12833],[14,12787,14,12791],[14,12792,14,12793],[14,12795,14,12799],[14,12800,14,12801],[14,12803,14,12807],[14,12808,14,12809],[14,12763,14,12767],[14,12768,14,12769],[14,12771,14,12775],[14,12776,14,12777],[14,12779,14,12783],[14,12784,14,12785],[14,12739,14,12743],[14,12744,14,12745],[14,12747,14,12751],[14,12752,14,12753],[14,12755,14,12759],[14,12760,14,12761],[14,12715,14,12719],[14,12720,14,12721],[14,12723,14,12727],[14,12728,14,12729],[14,12731,14,12735],[14,12736,14,12737],[14,12691,14,12695],[14,12696,14,12697],[14,12699,14,12703],[14,12704,14,12705],[14,12707,14,12711],[14,12712,14,12713],[14,12667,14,12671],[14,12672,14,12673],[14,12675,14,12679],[14,12680,14,12681],[14,12683,14,12687],[14,12688,14,12689],[14,12643,14,12647],[14,12648,14,12649],[14,12651,14,12655],[14,12656,14,12657],[14,12659,14,12663],[14,12664,14,12665],[14,12619,14,12623],[14,12624,14,12625],[14,12627,14,12631],[14,12632,14,12633],[14,12635,14,12639],[14,12640,14,12641],[14,12595,14,12599],[14,12600,14,12601],[14,12603,14,12607],[14,12608,14,12609],[14,12611,14,12615],[14,12616,14,12617],[14,12571,14,12575],[14,12576,14,12577],[14,12579,14,12583],[14,12584,14,12585],[14,12587,14,12591],[14,12592,14,12593],[14,12547,14,12551],[14,12552,14,12553],[14,12555,14,12559],[14,12560,14,12561],[14,12563,14,12567],[14,12568,14,12569],[14,12523,14,12527],[14,12528,14,12529],[14,12531,14,12535],[14,12536,14,12537],[14,12539,14,12543],[14,12544,14,12545],[14,12499,14,12503],[14,12504,14,12505],[14,12507,14,12511],[14,12512,14,12513],[14,12515,14,12519],[14,12520,14,12521],[14,12475,14,12479],[14,12480,14,12481],[14,12483,14,12487],[14,12488,14,12489],[14,12491,14,12495],[14,12496,14,12497],[14,12451,14,12455],[14,12456,14,12457],[14,12459,14,12463],[14,12464,14,12465],[14,12467,14,12471],[14,12472,14,12473]],"merged_total":4145,"flags":["merged_cut"]}
["Solicitud de Información General"]
[]
[]
[]
["2. Personal ",null,null,null,null,null,null,null,null,"Observaciones Sede ___\n*Escriba el número de la sede"]
["*"]
["Tiempo completo",null,null,null,null,null,null,null,null,"Observaciones Personal Tiempo Completo"]
["Inserte el número de filas de acuerdo con la cantidad de perfiles solicitados por la Entidad en la Solicitud de Información General"]
["Número de fila ",null,null,"Perfil del operario que requiere la Entidad en la sede"]
[]
[]
["Medio Tiempo",null,null,null,null,null,null,null,null,"Observaciones Personal Medio Tiempo"]
["Inserte el número de filas de acuerdo con la cantidad de perfiles solicitados por la Entidad en la Solicitud de Información General"]
["Número de fila ",null,null,"Perfil del operario que requiere la Entidad en la sede"]
[]
[]
["Personal por Turnos",null,null,null,null,null,null,null,null,"Observaciones Personal Por Turnos"]
["Inserte el número de filas de acuerdo con la cantidad de perfiles solicitados por la Entidad en la Solicitud de Información General"]
["Número de fila ",null,null,"Perfil del operario que requiere la Entidad en la sede"]
[]
[]
["Disminución del personal",null,null,null,null,null,null,null,null,"Observaciones Disminución de Personal"]
["Inserte el número de filas de acuerdo con la cantidad de perfiles solicitados en la disminución"]
["Número de fila ",null,null,"Perfil del operario que requiere la Entidad en la sede"]
[]
[]
["Observaciones sobre la dotación del personal "]
[]
["3. Bienes de Aseo y Cafetería ",null,null,null,null,null,null,null,null,"Observaciones de los Bienes de Aseo y Cfetería"]
["Inserte el número de filas de acuerdo con la cantidad de Bienes solicitados por la Entidad en el Detalle de Bienes de Aseo y Caf"]
["Número de fila ",null,null,"Nombre del Bien "]
[]
[]
[]
["4. Servicios Especiales",null,null,null,null,null,null,null,null,"Observaciones Servicios Generales"]
[]
["1. Fumigación",null,{"$f":"IF($C38<100,\"No\",\"Sí\")","v":"No"},"N° de fumigaciones requeridas durante la Orden de Compra"]
["Total en m2 ",null,{"$f":"SUM(J38)","v":0}]
[]
["2. Jardinería",null,{"$f":"IF($C41<100,\"No\",\"Sí\")","v":"No"}]
["Área total de la zona verde a mantener en m2: ",null,{"$f":"SUM(J41)","v":0}]
[]
[]
["3. Trabajo en alturas nivel avanzado"]
[]
[]
["6. Observaciones generales"]

{"sheet":"ConsolidadoServicios","index":4,"n_rows":0,"n_cols":0,"rows_kept":0,"cut":false,"hidden":true,"merged":[]}

{"sheet":"solCotizacionCSV_es","index":5,"n_rows":0,"n_cols":0,"rows_kept":0,"cut":false,"hidden":true,"merged":[]}

{"sheet":"Listas","index":6,"n_rows":23,"n_cols":28,"rows_kept":23,"cut":false,"hidden":true,"merged":[]}
["RegionCobertura","TipoInstalacion","TipoServicioSede","check","Confirmacion","Hora","meridiano","PersonalTC","PersonalMT","PersonalTurno","regioncobertura1","regioncobertura2","regioncobertura3","regioncobertura4","regioncobertura5","regioncobertura6","regioncobertura7","regioncobertura8","regioncobertura9","regioncobertura10","regioncobertura11","regioncobertura12","regioncobertura13","regioncobertura14","regioncobertura15","regioncobertura16","regioncobertura17","regioncobertura18"]
[1,"Batallón","Aseo","X","Sí","08:00:00","a.m.","Operario de aseo","Operario de aseo","Turno operario de mantenimiento","Asecolbas Ltda","Arios Colombia Sas","Arios Colombia Sas","Arios Colombia Sas","Arios Colombia Sas","Arios Colombia Sas","Arios Colombia Sas","Arios Colombia Sas","Arios Colombia Sas","Asecolbas Ltda","Aseos Colombianos Aseocolba S.A","Aseos Colombianos Aseocolba S.A","Aseos Colombianos Aseocolba S.A","Arios Colombia Sas","Arios Colombia Sas","Asecolbas Ltda","Aseos Colombianos Aseocolba S.A","Aseos Colombianos Aseocolba S.A"]
[2,"Campestre","Aseo y cafetería",null,"No","08:30:00","p.m.","Operario de cafetería","Operario de cafetería","Turno operario de mantenimiento capacitado para trabajo en alturas nivel básico","Aseos Colombianos Aseocolba S.A","Aseos Colombianos Aseocolba S.A","Aseovil Ltda","Asecolbas Ltda","Asecolbas Ltda","Asecolbas Ltda","Aseovil Ltda","Asecolbas Ltda","Asecolbas Ltda","Centro Aseo Mantenimiento Profesional S.A.S.","Brillaseo S.A.S.","Cleaner S.A.","Cleaner S.A.","Aseos Colombianos Aseocolba S.A","Asecolbas Ltda","Aseos Colombianos Aseocolba S.A","Cleaner S.A.","Cleaner S.A."]
[3,"Club","Aseo, cafetería y mantenimiento",null,null,"09:00:00",null,"Operario de aseo y cafetería","Operario de aseo y cafetería","Turno coordinador de trabajo en alturas nivel básico","Centro Aseo Mantenimiento Profesional S.A.S.","Aseovil Ltda","Centro Aseo Mantenimiento Profesional S.A.S.","Aseovil Ltda","Aseos Colombianos Aseocolba S.A","Centro Aseo Mantenimiento Profesional S.A.S.","Centro Aseo Mantenimiento Profesional S.A.S.","Centro Aseo Mantenimiento Profesional S.A.S.","Centro Aseo Mantenimiento Profesional S.A.S.","Cleaner S.A.","Centro Aseo Mantenimiento Profesional S.A.S.","Conserjes Inmobiliarios Ltda","Conserjes Inmobiliarios Ltda","Cleaner S.A.","Aseos Colombianos Aseocolba S.A","Cleaner S.A.","Conserjes Inmobiliarios Ltda","Conserjes Inmobiliarios Ltda"]
[4,"Colegio","Aseo y mantenimiento",null,null,"09:30:00",null,"Operario de mantenimiento","Operario de mantenimiento",null,"Cleaner S.A.","Brillaseo S.A.S.","Cleaner S.A.","Brillaseo S.A.S.","Brillaseo S.A.S.","Cleaner S.A.","Cleaner S.A.","Cleaner S.A.","Cleaner S.A.","Conserjes Inmobiliarios Ltda","Cleaner S.A.","Easyclean G&E S.A.S.","Easyclean G&E S.A.S.","Conserjes Inmobiliarios Ltda","Cleaner S.A.","Conserjes Inmobiliarios Ltda","Easyclean G&E S.A.S.","Easyclean G&E S.A.S."]
[5,"Edificio administrativo",null,null,null,"10:00:00",null,"Operario auxiliar","Operario auxiliar",null,"Compañía De Aseos Aseocar Ltda","Centro Aseo Mantenimiento Profesional S.A.S.","Compañía De Aseos Aseocar Ltda","Centro Aseo Mantenimiento Profesional S.A.S.","Centro Aseo Mantenimiento Profesional S.A.S.","Conserjes Inmobiliarios Ltda","Conserjes Inmobiliarios Ltda","Conserjes Inmobiliarios Ltda","Conserjes Inmobiliarios Ltda","Easyclean G&E S.A.S.","Conserjes Inmobiliarios Ltda","Serdan S.A","Serdan S.A","Easyclean G&E S.A.S.","Conserjes Inmobiliarios Ltda","Easyclean G&E S.A.S.","Serdan S.A","Serdan S.A"]
[6,"Otro",null,null,null,"10:30:00",null,"Coordinador de tiempo completo","Jardinero",null,"Conserjes Inmobiliarios Ltda","Cleaner S.A.","Conserjes Inmobiliarios Ltda","Cleaner S.A.","Cleaner S.A.","Easyclean G&E S.A.S.","Easyclean G&E S.A.S.","Easyclean G&E S.A.S.","Easyclean G&E S.A.S.","Mr Clean S.A.","Easyclean G&E S.A.S.","Union Temporal Aseo Colombia","Union Temporal Aseo Colombia","Serdan S.A","Easyclean G&E S.A.S.","Serdan S.A","Union Temporal Aseo Colombia","Union Temporal Aseo Colombia"]
[7,null,null,null,null,"11:00:00",null,"Jardinero","Operario de mantenimiento capacitado para trabajo en alturas nivel básico",null,"Easyclean G&E S.A.S.","Compañía De Aseos Aseocar Ltda","Easyclean G&E S.A.S.","Conserjes Inmobiliarios Ltda","Conserjes Inmobiliarios Ltda","Representaciones E Inversiones Elite Ltda","Mr Clean S.A.","Florez & Alvarez S.A.","Mr Clean S.A.","Representaciones E Inversiones Elite Ltda","Florez & Alvarez S.A.","Union Temporal Servi Eficiente 2016","Union Temporal Servi Eficiente 2016","Union Temporal Aseo Colombia","Serdan S.A","Union Temporal Aseo Colombia","Union Temporal Servi Eficiente 2016","Union Temporal Servi Eficiente 2016"]
[8,null,null,null,null,"11:30:00",null,"Operario de mantenimiento capacitado para trabajo en alturas nivel básico","Operario auxiliar capacitado para trabajo en alturas nivel básico",null,"Florez & Alvarez S.A.","Conserjes Inmobiliarios Ltda","Eco Servir S.A.S.","Easyclean G&E S.A.S.","Easyclean G&E S.A.S.","Serdan S.A","N&R Integral Service Company Sas","Ladoinsa Labores Dotaciones Industriales S.A.S","N&R Integral Service Company Sas","Serdan S.A","Ladoinsa Labores Dotaciones Industriales S.A.S",null,null,"Union Temporal Servi Eficiente 2016","Union Temporal Aseo Colombia","Union Temporal Servi Eficiente 2016"]
[9,null,null,null,null,"12:00:00",null,"Operario auxiliar capacitado para trabajo en alturas nivel básico","Jardinero capacitado para trabajo en alturas nivel básico",null,"Mr Clean S.A.","Easyclean G&E S.A.S.","Mr Clean S.A.","Eco Servir S.A.S.","Ladoinsa Labores Dotaciones Industriales S.A.S","Servi Limpieza S.A.","Representaciones E Inversiones Elite Ltda","Mr Clean S.A.","Representaciones E Inversiones Elite Ltda","Servi Limpieza S.A.","Representaciones E Inversiones Elite Ltda",null,null,null,"Union Temporal Servi Eficiente 2016"]
[10,null,null,null,null,"12:30:00",null,"Jardinero capacitado para trabajo en alturas nivel básico","Coordinador de trabajo en alturas nivel básico",null,"Representaciones E Inversiones Elite Ltda","Eco Servir S.A.S.","Representaciones E Inversiones Elite Ltda","Ladoinsa Labores Dotaciones Industriales S.A.S","Mr Clean S.A.","Servicios De Aseo, Cafeteria Y Mantenimiento Institucional Outsourcing Seasin Limitada","Serdan S.A","N&R Integral Service Company Sas","Serdan S.A","Serviaseo S.A","Serdan S.A"]
[11,null,null,null,null,"01:00:00",null,"Coordinador de trabajo en alturas nivel básico",null,null,"Serdan S.A","Ladoinsa Labores Dotaciones Industriales S.A.S","Serdan S.A","Mr Clean S.A.","Representaciones E Inversiones Elite Ltda","Union Temporal Aseo Colombia","Servi Limpieza S.A.","Representaciones E Inversiones Elite Ltda","Servi Limpieza S.A.","Servicio Integral Talentos Ltda","Servi Limpieza S.A."]
[12,null,null,null,null,"01:30:00",null,null,null,null,"Servi Limpieza S.A.","Mr Clean S.A.","Servi Limpieza S.A.","N&R Integral Service Company Sas","Serdan S.A","Union Temporal Eminser - Soloaseo 2016","Servicios De Aseo, Cafeteria Y Mantenimiento Institucional Outsourcing Seasin Limitada","Serdan S.A","Servicio Integral Talentos Ltda","Servicios De Aseo, Cafeteria Y Mantenimiento Institucional Outsourcing Seasin Limitada","Serviaseo S.A"]
[13,null,null,null,null,"02:00:00",null,null,null,null,"Servicios De Aseo, Cafeteria Y Mantenimiento Institucional Outsourcing Seasin Limitada","Representaciones E Inversiones Elite Ltda","Servicios De Aseo, Cafeteria Y Mantenimiento Institucional Outsourcing Seasin Limitada","Representaciones E Inversiones Elite Ltda","Servicios De Aseo, Cafeteria Y Mantenimiento Institucional Outsourcing Seasin Limitada","Union Temporal Servi Eficiente 2016","Union Temporal Aseo Colombia","Servi Limpieza S.A.","Servicios De Aseo, Cafeteria Y Mantenimiento Institucional Outsourcing Seasin Limitada","Union Temporal Aseo Colombia","Servicios De Aseo, Cafeteria Y Mantenimiento Institucional Outsourcing Seasin Limitada"]
[14,null,null,null,null,"02:30:00",null,null,null,null,"Union Temporal Aseo Colombia","Serdan S.A","Serviespeciales S.A.S.","Serdan S.A","Serviespeciales S.A.S.",null,"Union Temporal Biolimpieza","Serviaseo S.A","Union Temporal Aseo Colombia","Union Temporal Eminser - Soloaseo 2016","Serviespeciales S.A.S."]
[15,null,null,null,null,"03:00:00",null,null,null,null,"Union Temporal Eminser - Soloaseo 2016","Servi Limpieza S.A.","Union Temporal Aseo Colombia","Servi Limpieza S.A.","Union Temporal Aseo Colombia",null,"Union Temporal Eminser - Soloaseo 2016","Servicios De Aseo, Cafeteria Y Mantenimiento Institucional Outsourcing Seasin Limitada","Union Temporal Eminser - Soloaseo 2016","Union Temporal Servi Eficiente 2016","Union Temporal Aseo Colombia"]
[16,null,null,null,null,"03:30:00",null,null,null,null,"Union Temporal Servi Eficiente 2016","Servicios De Aseo, Cafeteria Y Mantenimiento Institucional Outsourcing Seasin Limitada","Union Temporal Biolimpieza","Servicios De Aseo, Cafeteria Y Mantenimiento Institucional Outsourcing Seasin Limitada","Union Temporal Biolimpieza",null,"Union Temporal Servi Eficiente 2016","Serviespeciales S.A.S.","Union Temporal Servi Eficiente 2016",null,"Union Temporal Biolimpieza"]
[17,null,null,null,null,"04:00:00",null,null,null,null,null,"Union Temporal Aseo Colombia","Union Temporal Eminser - Soloaseo 2016","Serviespeciales S.A.S.","Union Temporal Eminser - Soloaseo 2016",null,"Unión Temporal Servicol 2016","Union Temporal Aseo Colombia",null,null,"Union Temporal Eminser - Soloaseo 2016"]
[18,null,null,null,null,"04:30:00",null,null,null,null,null,"Union Temporal Eminser - Soloaseo 2016","Union Temporal Servi Eficiente 2016","Union Temporal Aseo Colombia","Union Temporal Servi Eficiente 2016",null,null,"Union Temporal Eminser - Soloaseo 2016",null,null,"Union Temporal Servi Eficiente 2016"]
[null,null,null,null,null,"05:00:00",null,null,null,null,null,"Union Temporal Servi Eficiente 2016","Unión Temporal Servicol 2016","Union Temporal Biolimpieza","Unión Temporal Servicol 2016",null,null,"Union Temporal Servi Eficiente 2016"]
[null,null,null,null,null,null,null,null,null,null,null,null,null,"Union Temporal Eminser - Soloaseo 2016",null,null,null,"Unión Temporal Servicol 2016"]
[null,null,null,null,null,null,null,null,null,null,null,null,null,"Union Temporal Servi Eficiente 2016"]
[null,null,null,null,null,null,null,null,null,null,null,null,null,"Unión Temporal Servicol 2016"]

{"sheet":"ClasifiPersonal","index":7,"n_rows":15,"n_cols":6,"rows_kept":15,"cut":false,"hidden":true,"merged":[]}
["Perfil","clasificacion","PisoTC","PisoMT","TechoTC","PisoMT"]
["Operario de aseo","Operario de aseo y cafetería",1176000,{"$f":"C2*64%","v":752640},1653750,{"$f":"E2*64%","v":1058400}]
["Operario de cafetería","Operario de aseo y cafetería",1176000,{"$f":"C3*64%","v":752640},1653750,{"$f":"E3*64%","v":1058400}]
["Operario de aseo y cafetería","Operario de aseo y cafetería",1176000,752640,1653750,1058400]
["Operario de mantenimiento","Operario de mantenimiento",1216000,778240,1984500,1270080]
["Operario auxiliar","Operario auxiliar",1216000,778240,1764000,1128960]
["Coordinador de tiempo completo","Coordinador de tiempo completo",1176000,752640,2756250,1764000]
["Jardinero","Jardinero",1216000,778240,1984500,1270080]
["Operario de mantenimiento capacitado para trabajo en alturas nivel básico","Operario de mantenimiento capacitado para trabajo en alturas nivel básico",1216000,778240,2111000,1351040]
["Operario auxiliar capacitado para trabajo en alturas nivel básico","Operario auxiliar capacitado para trabajo en alturas nivel básico",1216000,778240,1846000,1181440]
["Jardinero capacitado para trabajo en alturas nivel básico","Jardinero capacitado para trabajo en alturas nivel básico",1216000,778240,2111000,1351040]
["Coordinador de trabajo en alturas nivel básico","Coordinador de trabajo en alturas nivel básico",1185000,758400,2756250,1764000]
["Turno operario de mantenimiento","Turno operario de mantenimiento",40530,25939.200000000001,195718,125259.52]
["Turno operario de mantenimiento capacitado para trabajo en alturas nivel básico","Turno operario de mantenimiento capacitado para trabajo en alturas nivel básico",40530,25939.200000000001,195718,125259.52]
["Turno coordinador de trabajo en alturas nivel básico","Turno coordinador de trabajo en alturas nivel básico",39500,25280,154930,99155.199999999997]

{"sheet":"TablaDinamica","index":8,"n_rows":0,"n_cols":0,"rows_kept":0,"cut":false,"hidden":true,"merged":[]}

{"sheet":"temp","index":9,"n_rows":0,"n_cols":0,"rows_kept":0,"cut":false,"hidden":true,"merged":[]}

{"sheet":"Precios","index":10,"n_rows":0,"n_cols":0,"rows_kept":0,"cut":false,"hidden":true,"merged":[]}